{"text_format":"1","workbook":"xlsx","n_sheets":13,"sheets":["AER only","Instructions","Contents","Business & other details","3.1 Revenue","3.2 Operating expenditure","3.2.3 Provisions","3.3 Assets (RAB)","3.4 Operational data","3.5 Physical assets","3.6 Quality of service","3.7 Operating environment","NSP amendments"],"not_rendered":{"charts":0,"images":5,"macros":1,"external_links":0,"defined_names":682,"comments":1,"pivot_tables":0},"unopened":[],"bounds":{"document_bytes":16777216,"sheet_cells":100000,"rows_first":2000,"rows_last":500,"rows_between":2000,"halvings":0,"cell_chars":16384,"cell_head_chars":4096},"cells_cut":0,"cells_raw":0,"read":"whole","date_system":"1900"}

{"sheet":"AER only","index":0,"n_rows":150,"n_cols":39,"rows_kept":150,"cut":false,"hidden":true,"merged":[[58,35,62,35],[66,35,67,35],[72,14,72,15],[72,24,72,27],[110,1,110,8],[55,35,57,35],[0,1,0,11],[4,27,4,37],[6,27,6,30],[6,33,6,37],[53,24,53,28],[53,29,53,32],[54,1,54,5],[54,14,54,21],[54,24,54,28],[54,29,54,32],[55,2,55,3]]}
[null,"Data in these columns used for data validation and database purposes."]
[null,"Date last modified:","2017-01-16","added (Albury and Victora) for AGN"]
[null,null,"2016-10-17","updated TransGrid's correct legal name, corrected TasNetworks (T) to June financial year"]
[null,null,"2017-02-01","inserted Power and Water, added NRs (dms_FeederCat_1 and dms_FeederCat_2)"]
[null,null,"2017-03-03","inserted AEMO as a business",null,null,null,null,null,null,null,null,null,null,null,null,null,null,null,null,null,null,null,null,null,null,null,"FOR ELECTRICITY BUSINESSES ONLY"]
[null,null,"2018-03-28","major changes to accommodate STPIS"]
[null,null,"Template Version",5,null,null,null,null,null,null,null,null,null,null,null,null,null,null,null,null,null,null,null,null,null,null,null,"Feeder Types",null,null,null,"TasNetworks (D)","MAIFI flag","Feeder Names"]
[null,null,null,null,null,null,null,null,null,null,null,null,null,null,null,null,null,null,null,null,null,null,null,null,null,null,null,"CBD","Urban","Short rural","long rural","EXTRA"]
[null,"dms_TradingName_List","dms_TradingNameFull_List","dms_ABN_List","dms_JurisdictionList","dms_Sector_List","dms_Segment_List","dms_FormControl_List","dms_RPT_List","dms_RPTMonth_List","dms_CRCPlength_List","dms_FRCPlength_List","dms_663_List","dms_DeterminationRef_List","dms_Addr1_List","dms_Addr2_List","dms_Suburb_List","dms_State_List","dms_PostCode_List","dms_PAddr1_List","dms_PAddr2_List","dms_PSuburb_List","dms_PState_List","dms_PPostCode_List","dms_ContactName1_List","dms_ContactPh1_List","dms_ContactEmail_List","dms_CBD_flag","dms_Urban_flag","dms_ShortRural_flag","dms_LongRural_flag","dms_FeederType_5_flag","dms_MAIFI_flag_List","dms_FeederName_1","dms_FeederName_2","dms_FeederName_3","dms_FeederName_4","dms_FeederName_5","Column1"]
[null,"ActewAGL Distribution","ActewAGL Distribution",76670568688,"ACT","Electricity","Distribution","Revenue cap","Financial","June",5,5,5,"2014-19 Distribution Determination","40 Bunda Street",null,"CANBERRA","ACT",2600,"GPO BOX 366",null,"CANBERRA","ACT",2601,"Robert Walker","02 6248 3847","robert.walker@actewagle.com.au","NO","YES","YES","NO","NO",null,"CBD","Urban","Short rural","Long rural",null,"ActewAGL Distribution"]
[null,"ActewAGL Distribution (Tx Assets)","ActewAGL Distribution (Tx Assets)",76670568688,"ACT","Electricity","Distribution","Revenue cap","Financial","June",5,5,5,"distribution determination","40 Bunda Street",null,"CANBERRA","ACT",2600,"GPO BOX 366",null,"CANBERRA","ACT",2601,"Robert Walker","02 6248 3847","robert.walker@actewagle.com.au","NO","YES","YES","NO","NO",null,"CBD","Urban","Short rural","Long rural",null,"ActewAGL Distribution (Tx Assets)"]
[null,"ActewAGL Gas","ActewAGL Gas",76670568688,"ACT","Gas","Distribution","Weighted average price cap","Financial","June",5,5,"x",null,"40 Bunda Street",null,"CANBERRA","ACT",2600,"GPO BOX 366",null,"CANBERRA","ACT",2601,"Philip Deamer","02 6248 3438","GasAAReview@actewagl.com.au",null,null,null,null,null,null,"CBD","Urban","Short rural","Long rural",null,"ActewAGL Gas"]
[null,"AEMO","Australian Energy Market Operator Ltd",94072010327,"Vic","Electricity","Transmission","-","Financial","March",5,5,"x","-","Level 22","530 Collins Street","MELBOURNE","VIC",3000,"GPO Box 2008",null,"MELBOURNE","VIC",3001,null,null,null,"n/a","n/a","n/a","n/a","n/a",null,"CBD","Urban","Short rural","Long rural",null,"AEMO"]
[null,"AGN (Albury and Victoria)","Australian Gas Networks Limited (reporting data for Albury and Victoria)",19078551685,"Vic","Gas","Distribution","Weighted average price cap","Calendar","December",5,5,"x",null,"Level 6","400 King William Street","ADELAIDE","SA",5000,"PO Box 6468","Halifax Street","ADELAIDE","SA",5000,"Craig de Laine","08 8418 1129 ","craig.delaine@agn.com.au","n/a","n/a","n/a","n/a","n/a",null,"CBD","Urban","Short rural","Long rural",null,"AGN (Albury)"]
[null,"AGN (Albury)","Australian Gas Networks Limited (reporting data for Albury)",19078551685,"Vic","Gas","Distribution","Weighted average price cap","Calendar","December",5,5,"x",null,"Level 6","400 King William Street","ADELAIDE","SA",5000,"PO Box 6468","Halifax Street","ADELAIDE","SA",5000,"Craig de Laine","08 8418 1129 ","craig.delaine@agn.com.au","n/a","n/a","n/a","n/a","n/a",null,"CBD","Urban","Short rural","Long rural"]
[null,"AGN (SA)","Australian Gas Networks Limited (reporting data for SA)",19078551685,"SA","Gas","Distribution","Weighted average price cap","Financial","June",5,5,5,"distribution determination","Level 6","400 King William Street","ADELAIDE","SA",5000,"PO Box 6468","Halifax Street","ADELAIDE","SA",5000,"Craig de Laine","08 8418 1129 ","craig.delaine@agn.com.au","n/a","n/a","n/a","n/a","n/a",null,"CBD","Urban","Short rural","Long rural",null,"AGN (SA)"]
[null,"AGN (Victoria)","Australian Gas Networks Limited (reporting data for Victoria)",19078551685,"Vic","Gas","Distribution","Weighted average price cap","Calendar","December",5,5,"x",null,"Level 6","400 King William Street","ADELAIDE","SA",5000,"PO Box 6468","Halifax Street","ADELAIDE","SA",5000,"Craig de Laine","08 8418 1129 ","craig.delaine@agn.com.au","n/a","n/a","n/a","n/a","n/a",null,"CBD","Urban","Short rural","Long rural",null,"AGN (Victoria)"]
[null,"Amadeus","APT Pipelines (NT) Pty Ltd",39009737393,"NT","Gas","Transmission","Weighted average price cap","Financial","June",5,5,"x","n/a","Level 19, HSBC Building","580 George Street","SYDNEY","NSW",2000,"Level 19, HSBC Building","580 George Street","SYDNEY","NSW",2000,"Alexandra Curran","02 9275 0020","alexandra.curran@apa.com.au","n/a","n/a","n/a","n/a","n/a",null,"CBD","Urban","Short rural","Long rural",null,"Amadeus"]
[null,"APA GasNet","APA GasNet Australia (Operations) Pty Ltd","065083009","Vic","Gas","Transmission","Weighted average price cap","Calendar","December",5,5,"x",null,"Level 19, HSBC Building","580 George Street","SYDNEY","NSW",2000,"PO Box R41",null,"ROYAL EXCHANGE","NSW",1225,"Alexandra Curran","02 9275 0020","alexandra.curran@apa.com.au","n/a","n/a","n/a","n/a","n/a",null,"CBD","Urban","Short rural","Long rural",null,"APA GasNet"]
[null,"Ausgrid","Ausgrid",78508211731,"NSW","Electricity","Distribution","Revenue cap","Financial","June",5,5,5,"2014-19 Distribution Determination","570 George St",null,"SYDNEY","NSW",2000,"GPO Box 4009",null,"SYDNEY","NSW",2001,"John Thomson","02 9269 2312","john.thomson@ausgrid.com.au","YES","YES","YES","YES","NO",null,"CBD","Urban","Short rural","Long rural",null,"Ausgrid"]
[null,"Ausgrid (Tx Assets)","Ausgrid (Tx Assets)",67505337385,"NSW","Electricity","Distribution","Revenue cap","Financial","June",5,5,5,"distribution determination","570 George St",null,"SYDNEY","NSW",2000,"GPO Box 4009",null,"SYDNEY","NSW",2001,"John Thomson","02 9269 2312","john.thomson@ausgrid.com.au","YES","YES","YES","YES","NO",null,"CBD","Urban","Short rural","Long rural",null,"Ausgrid (Tx Assets)"]
[null,"AusNet (D)","AusNet Electricity Services Pty Ltd",91064651118,"Vic","Electricity","Distribution","Revenue cap","Calendar","December",5,5,2,"2016-20 Distribution Determination","Level 32","2 Southbank Boulevard","SOUTHBANK","Vic",3006,"Locked Bag 14051",null,"MELBOURNE CITY MAIL CENTRE","VIC",8001,"please provide contact details",null,null,null,"YES","YES","YES","NO",null,"CBD","Urban","Short rural","Long rural",null,"AusNet (D)"]
[null,"AusNet (Gas)","AusNet Gas Services","086015036","Vic","Gas","Distribution","Weighted average price cap","Calendar","December",5,5,"X",null,"Level 19, HSBC Building","580 George Street","SYDNEY","NSW",2000,"PO Box R41",null,"ROYAL EXCHANGE","NSW",1225,"Alexandra Curran","02 9275 0020","alexandra.curran@apa.com.au","n/a","n/a","n/a","n/a","n/a",null,"CBD","Urban","Short rural","Long rural",null,"AusNet (Gas)"]
[null,"AusNet (T)","Ausnet Services (Transmission) Ltd",48116124362,"Vic","Electricity","Transmission","Revenue cap","Financial","March",5,5,2,"transmission determination","Level 32","2 Southbank Boulevard","SOUTHBANK","Vic",3006,"Locked Bag 14051",null,"MELBOURNE CITY MAIL CENTRE","Vic",8001,"Clare Thompson","03 9695 6670","clare.e.thompson@ausnetservices.com.au","n/a","n/a","n/a","n/a","n/a",null,"CBD","Urban","Short rural","Long rural",null,"AusNet (T)"]
[null,"Australian Distribution Co.","Australian Distribution Co.",11222333444,"-","Electricity","Distribution","Revenue cap","Financial","June",5,5,2,"distribution determination","123 Straight Street",null,"SYDNEY","NSW",2000,"PO Box 123",null,"SYDNEY","NSW",2000,"Bob Smith","02 1234 5678","bob@auselec.net.au","n/a","n/a","n/a","n/a","NO",null,"CBD","Urban","Short rural","Long rural",null,"Australian Distribution Co."]
[null,"Australian Distribution Co. (Vic)","Australian Distribution Co. (Victoria)",11222333444,"Vic","Electricity","Distribution","Revenue cap","Calendar","December",5,5,2,"distribution determination","123 Straight Street",null,"MELBOURNE","Vic",3000,"PO Box 123",null,"MELBOURNE","VIC",3000,"Bob Smith","02 1234 5678","bob@auselec.net.au","n/a","n/a","n/a","n/a","NO",null,"CBD","Urban","Short rural","Long rural",null,"Australian Distribution Co. (Vic)"]
[null,"Australian Transmission Co.","Australian Transmission Co.",11222333444,"-","Electricity","Transmission","Revenue cap","Financial","June",5,5,5,"transmission determination","123 Straight Street",null,"SYDNEY","NSW",2000,"PO Box 123",null,"SYDNEY","NSW",2000,"Bob Smith","02 1234 5678","bob@auselec.net.au","n/a","n/a","n/a","n/a","NO",null,"CBD","Urban","Short rural","Long rural",null,"Australian Transmission Co."]
[null,"Central Ranges Pipeline (D)","Central Ranges Pipeline Pty Ltd",108218355,"NSW","Gas","Distribution","Weighted average price cap","Financial","June",15,5,5,"distribution determination","Level 19","580 George Street","SYDNEY","NSW",2000,"PO Box R41",null,"ROYAL EXCHANGE","NSW",1225,"Scott Young","02 9275 0031","scott.young@apa.com.au","n/a","n/a","n/a","n/a","n/a",null,"CBD","Urban","Short rural","Long rural"]
[null,"Central Ranges Pipeline (T)","Central Ranges Pipeline Pty Ltd",108218355,"NSW","Gas","Distribution","Weighted average price cap","Financial","June",14,5,5,"transmission determination","Level 19","580 George Street","SYDNEY","NSW",2000,"PO Box R41",null,"ROYAL EXCHANGE","NSW",1225,"Scott Young","02 9275 0031","scott.young@apa.com.au","n/a","n/a","n/a","n/a","n/a",null,"CBD","Urban","Short rural","Long rural"]
[null,"CitiPower","CitiPower",76064651056,"Vic","Electricity","Distribution","Revenue cap","Calendar","December",5,5,2,"2016-20 Distribution Determination","40 Market Street",null,"MELBOURNE","Vic",3000,"Locked Bag 14090",null,"MELBOURNE","VIC",8001,"Hannah Williams","03 9683 4088","hwilliams@powercor.com.au","YES","YES","NO","NO","NO",null,"CBD","Urban","Short rural","Long rural",null,"CitiPower"]
[null,"Directlink","Directlink",16779340889,"Qld","Electricity","Transmission","Revenue cap","Financial","June",9,5,5,"transmission determination","Level 19, HSBC Building","580 George Street","SYDNEY","NSW",2000,"PO Box R41",null,"ROYAL EXCHANGE","NSW",1225,"Scott Young","02 9275 0031","scott.young@apa.com.au","n/a","n/a","n/a","n/a","n/a",null,"CBD","Urban","Short rural","Long rural",null,"Directlink"]
[null,"ElectraNet","ElectraNet",41094482416,"SA","Electricity","Transmission","Revenue cap","Financial","June",5,5,5,"transmission determination","52-55 East Terrace","Rymill Park","ADELAIDE","SA",5000,"PO Box 7096","Hutt Street Post Office","ADELAIDE","SA",5000,"Bill Jackson","08 8404 7969","jackson.bill@electranet.com.au","n/a","n/a","n/a","n/a","n/a",null,"CBD","Urban","Short rural","Long rural",null,"ElectraNet"]
[null,"Endeavour Energy","Endeavour Energy",11247365823,"NSW","Electricity","Distribution","Revenue cap","Financial","June",5,5,5,"2014-19 Distribution Determination","51 Huntingwood Drive",null,"HUNTINGWOOD","NSW",2148,"PO Box 811",null,"SEVEN HILLS","NSW",1730,"Jon Hocking","02 9853 4386 / 0407 348 156","Jon.Hocking@Endeavourenergy.com.au","NO","YES","YES","YES","NO",null,"CBD","Urban","Short rural","Long rural",null,"Endeavour Energy"]
[null,"Energex","Energex",40078849055,"Qld","Electricity","Distribution","Revenue cap","Financial","June",5,5,5,"2015-20 Distribution Determination","26 Reddacliff Street",null,"NEWSTEAD","Qld",4006,"26 Reddacliff Street",null,"NEWSTEAD","QLD",4006,"Nicola Roscoe","07 3664 5891","nicolaroscoe@energex.com.au","YES","YES","YES","NO","NO",null,"CBD","Urban","Short rural","Long rural",null,"Energex"]
[null,"Ergon Energy","Ergon Energy",50087646062,"Qld","Electricity","Distribution","Revenue cap","Financial","June",5,5,5,"2015-20 Distribution Determination","22 Walker Street",null,"TOWNSVILLE","Qld",4810,"Po Box 264",null,"FORTITUDE VALLEY","QLD",4006,"Jenny Doyle, Group Manager Regulatory Affairs","(07) 3851 6416","jenny.doyle@ergon.com.au","NO","YES","YES","YES","NO",null,"CBD","Urban","Short rural","Long rural",null,"Ergon Energy"]
[null,"Essential Energy","Essential Energy",37428185226,"NSW","Electricity","Distribution","Revenue cap","Financial","June",5,5,5,"2014-19 Distribution Determination","8 Buller Street",null,"PORT MACQUARIE","NSW",2444,"PO Box 5730",null,"PORT MACQUARIE","NSW",2444,"Catherine Waddell","02 6338 3553","catherine.waddell@essentialenergy.com.au","NO","NO","YES","YES","NO",null,"CBD","Urban","Short rural","Long rural",null,"Essential Energy"]
[null,"Jemena Electricity","Jemena Electricity",82064651083,"Vic","Electricity","Distribution","Revenue cap","Calendar","December",5,5,2,"2016-20 Distribution Determination","Level 16","567 Collins Street","MELBOURNE","VIC",3000,"PO Box 16182",null,"MELBOURNE","VIC",8001,"Matthew Serpell","03 9173 8231","matthew.serpell@jemena.com.au","NO","NO","YES","NO","NO",null,"CBD","Urban","Short rural","Long rural",null,"Jemena Electricity"]
[null,"JGN","Jemena Gas Networks (NSW) Ltd","003 004 322","NSW","Gas","Distribution","Weighted average price cap","Financial","June",5,5,null,null,null,null,null,null,null,null,null,null,null,null,"please provide contact details",null,null,"n/a","n/a","n/a","n/a","n/a",null,"CBD","Urban","Short rural","Long rural",null,"JGN"]
[null,"Multinet Gas","Multinet Gas (DB No.1) Pty Ltd (ACN 086 026 986), Multinet Gas (DB No.2) Pty Ltd (ACN 086 230 122)","086026986","Vic","Gas","Distribution","Weighted average price cap","Calendar","December",5,5,"x",null,"43-45 Centreway",null,"MT WAVERLEY","Vic",3149,null,null,null,null,null,"Andrew Schille","03 8846 9860","andrew.schille@ue.com.au","n/a","n/a","n/a","n/a","n/a",null,"CBD","Urban","Short rural","Long rural",null,"Multinet Gas"]
[null,"Murraylink","Murraylink",79181207909,"SA","Electricity","Transmission","Revenue cap","Financial","June",5,5,5,"transmission determination","Level 19","580 George Street","SYDNEY","NSW",2000,"PO Box R41",null,"ROYAL EXCHANGE","NSW",1225,"Scott Young","02 9275 0031","scott.young@apa.com.au","n/a","n/a","n/a","n/a","n/a",null,"CBD","Urban","Short rural","Long rural",null,"Murraylink"]
[null,"Power and Water","Power and Water Corporation",15947352360,"NT","Electricity","Distribution","Revenue cap","Financial","June",5,5,"x","distribution determination","GPO Box 1921",null,"DARWIN","NT",801,"GPO Box 1921",null,"DARWIN","NT",801,"Lucy Moon","08 8924 5822","Lucy.Moon@powerwater.com.au","YES","YES","YES","YES","NO",null,"CBD","Urban","Short rural","Long rural"]
[null,"Powercor Australia","Powercor Australia",89064651109,"Vic","Electricity","Distribution","Revenue cap","Calendar","December",5,5,2,"2016-20 Distribution Determination","40 Market Street",null,"MELBOURNE","Vic",3000,"Locked bag 14090",null,"MELBOURNE","VIC",8001,"Hannah Williams","03 9683 4088","hwilliams@powercor.com.au",null,null,"YES","YES","NO",null,"CBD","Urban","Short rural","Long rural",null,"Powercor Australia"]
[null,"Powerlink","Queensland Electricity Transmission Corporation Limited trading as Powerlink Queensland",82078849233,"Qld","Electricity","Transmission","Revenue cap","Financial","June",5,5,5,"transmission determination","33 Harold St",null,"VIRGINIA","Qld",4014,"PO Box 1193",null,"VIRGINIA","QLD",4014,"Jennifer Harris","07 3860 2667","jharris@powerlink.com.au","n/a","n/a","n/a","n/a","n/a",null,"CBD","Urban","Short rural","Long rural",null,"Powerlink"]
[null,"Roma to Brisbane Pipeline","APT Petroleum Pipelines Limited t/a Roma to Brisbane Pipeline","009 737 393","Qld","Gas","Transmission","Weighted average price cap","Financial","June",5,5,"x","n/a","580 George Street",null,"SYDNEY","NSW",2000,"PO Box R41",null,"ROYAL EXCHANGE","NSW",1225,"Mark Allen","02 9275 0010","mark.allen@apa.com.au","n/a","n/a","n/a","n/a","n/a",null,"CBD","Urban","Short rural","Long rural",null,"Roma to Brisbane Pipeline"]
[null,"SA Power Networks","SA Power Networks",13332330749,"SA","Electricity","Distribution","Revenue cap","Financial","June",5,5,5,"2015-20 Distribution Determination","1 Anzac Highway",null,"KESWICK","SA",5035,"GPO Box 77",null,"ADELAIDE","SA",5000,"Richard Sibly","08 8404 5613","richard.sibly@sapowernetworks.com.au","NO","NO","YES","YES","NO",null,"CBD","Urban","Short rural","Long rural",null,"SA Power Networks"]
[null,"TasNetworks (D)","TasNetworks (D)",24167357299,"Tas","Electricity","Distribution","Revenue cap","Financial","June",5,5,5,"distribution determination","1-7 Maria Street",null,"LENAH VALLEY","Tas",7008,"PO Box 606",null,"MOONAH","Tas",7009,"John Sayers","03 6271 6469","john.sayers@tasnetworks.com.au","YES","YES","YES","YES","YES",null,"Critical Infrastructure","High density commercial","Urban","High density rural","Low density rural","TasNetworks (D)"]
[null,"TasNetworks (T)","TasNetworks (T)",24167357299,"Tas","Electricity","Transmission","Revenue cap","Financial","June",5,5,5,"transmission determination","1-7 Maria Street",null,"LENAH VALLEY","Tas",7008,"PO Box 606",null,"MOONAH","Tas",7009,"John Sayers","03 6271 6469","john.sayers@tasnetworks.com.au","n/a","n/a","n/a","n/a","n/a",null,"CBD","Urban","Short rural","Long rural",null,"TasNetworks (T)"]
[null,"TransGrid","NSW Electricity Networks Operations Pty Ltd trading as TransGrid",609169959,"NSW","Electricity","Transmission","Revenue cap","Financial","June",5,4,5,"transmission determination","180 Thomas Street",null,"SYDNEY","NSW",2000,"PO Box A1000",null,"SYDNEY SOUTH","NSW",1235,"Garrie Chubb","0408 210 221","garrie.chubb@transgrid.com.au","n/a","n/a","n/a","n/a","n/a",null,"CBD","Urban","Short rural","Long rural",null,"TransGrid"]
[null,"United Energy","United Energy",70064651029,"Vic","Electricity","Distribution","Revenue cap","Calendar","December",5,5,2,"2016-20 Distribution Determination","Level 3","6 Nexus Court","MULGRAVE","Vic",3149,"PO Box 449",null,"MOUNT WAVERLEY","VIC",3170,"Mathew Abraham","03 8846 9758","mathew.abraham@ue.com.au","NO","NO","YES","NO","NO",null,"CBD","Urban","Short rural","Long rural",null,"United Energy"]
[null,"Western Power (D)","Western Power (D)",18540492861,"WA","Electricity","Distribution","Revenue cap","Financial","June",12,4,"x","distribution determination","363 Wellington Street",null,"PERTH","WA",6000,"GPO Box L921",null,"PERTH","WA",6842,"Judy Hunter","08 9326 6239","judy.hunter@westernpower.com.au","NO","NO","YES","YES","NO","NO","CBD","Urban","Short rural","Long rural",null,"Western Power (D)"]
[null,"Western Power (T)","Western Power (T)",18540492861,"WA","Electricity","Transmission","Revenue cap","Financial","June",12,4,"x","transmission determination","363 Wellington Street",null,"PERTH","WA",6000,"GPO Box L921",null,"PERTH","WA",6842,"Judy Hunter","08 9326 6239","judy.hunter@westernpower.com.au","n/a","n/a","n/a","n/a","n/a",null,"CBD","Urban","Short rural","Long rural",null,"Western Power (T)"]
[]
[]
[null,null,null,null,null,null,null,null,null,null,null,null,null,null,null,null,null,null,null,null,null,null,null,null,"For EB & Reset RINs only",null,null,null,null,"For AARs only"]
[null,"The Reg Year Ending (dms_RYE) must be set to the last year of the regulatory period. For forecast data is is usually (FRCP_y5) for actual it is a single year (CRY). For historical actual data the RYE will need to be set manually in the business details sheet by setting the dms_Multiyear_flag to 1 and putting the correct value in 'dms_Specified_FinalYear. See cells C67:C68",null,null,null,null,{"$f":"IF(dms_RPT=\"financial\",VALUE(LEFT(CRCP_y1,4)-1)&\"-\"&TEXT(VALUE(RIGHT(CRCP_y1,2)-1),\"00\"),VALUE(LEFT(CRCP_y1,4)-1))","v":"2014-15"},null,null,null,null,null,null,"Drop down selector box for CA & Reset RINs.","For CA & Reset RINs only",null,null,null,null,null,null,null,null,null,"for DNSP only",null,null,null,null,"For DNSPs only",null,null,null,null,null,"Reason for interruption","dms_Reason_Interruption_Detailed","dms_Reason_Interruption","dms_STPIS_Exclusion_List"]
[null,"dms_Model_List ","DELETE NR 'CRY' IF NOT AN ANNUAL RIN (EB, CA , ARR)",null,"dms_RYE_Formula_Result",null,null,null,null,null,null,null,null,"dms_0203_ProjectType","dms_020303_01_UOM","dms_020501_01_UOM","dms_020501_02_UOM","dms_020501_03_UOM","dms_020501_04_UOM","dms_020603_01_UOM","dms_020701_01_UOM","dms_020701_02_UOM","dms_040102_01_UOM","dms_040102_04_UOM","dms_030601_01_UOM","dms_030601_02_UOM","dms_030701_01_UOM","dms_030702_01_UOM","dms_030703_01_UOM","dms_030605_UOM","dms_03060703_UOM",null,null,null,null,"Animal","Animal impact","Animal","Weather"]
[null,"ARR","ANNUAL REPORTING STATEMENT",null,{"$f":"LEFT(dms_SingleYear_FinalYear_Result,2)&RIGHT(dms_SingleYear_FinalYear_Result,2)","v":"2018"},"=LEFT(dms_SingleYear_FinalYear_Result,2)&RIGHT(dms_SingleYear_FinalYear_Result,2)",null,"Formula errors are OK",null,null,null,null,null,"New line on new route - single circuit","Circuit line length in km","0's","0's","0's","0's","0's","km","km","0's","days","minutes/customer","minutes/customer","Customer / km","%","km","number","number",null,null,null,null,null,"Animal nesting/burrowing, etc and other","Asset failure","Equipment failure"]
[null,"CA","CATEGORY ANALYSIS",null,{"$f":"LEFT(dms_SingleYear_FinalYear_Result,2)&RIGHT(dms_SingleYear_FinalYear_Result,2)","v":"2018"},"=LEFT(dms_SingleYear_FinalYear_Result,2)&RIGHT(dms_SingleYear_FinalYear_Result,2)",null,"Formula errors are OK",null,null,null,null,null,"New line on new route - dual circuit","Circuit line length in km","0's","0's","0's","0's","0's","0's","0's","0's","0's","minutes/customer","minutes/customer","MWh/customer","Number of spans",null,"number","number",null,null,null,null,null,"Other","Other","Operational error"]
[null,"CPI","CPI",null,null,null,null,null,null,null,null,null,null,"New line on new route - other","Circuit line length in km","MVA added","MVA added","MVA added","MVA added","0's","km","km","0's","$0s","interruptions/customer","interruptions/customer","kVA / customer","Number of spans",null,"number","number",null,null,null,null,"Asset failure","LV","Overloads","Vegetation"]
[null,"EB","ECONOMIC BENCHMARKING",null,{"$f":"LEFT(dms_SingleYear_FinalYear_Result,2)&RIGHT(dms_SingleYear_FinalYear_Result,2)","v":"2018"},"=LEFT(dms_SingleYear_FinalYear_Result,2)&RIGHT(dms_SingleYear_FinalYear_Result,2)",null,"Formula errors are OK",null,null,null,null,null,"Line rebuild over existing route - single circuit","Circuit line length in km","0's","0's","0's","0's","0's","km","km","$0s","0's","interruptions/customer","interruptions/customer",null,"Number of spans",null,"number","number",null,null,null,null,null,"Distribution substation","Planned","Animals"]
[null,"PTRM","POST TAX REVENUE MODEL",null,{"$f":"LEFT(dms_MultiYear_FinalYear_Result,2)&RIGHT(dms_MultiYear_FinalYear_Result,2)","v":"2025"},"=LEFT(dms_MultiYear_FinalYear_Result,2)&RIGHT(dms_MultiYear_FinalYear_Result,2)",null,null,null,null,null,null,null,"Line rebuild over existing route - dual circuit","Number","total spend $0s","total spend $0s","total spend $0s","total spend $0s","(per cent)","0's","0's",null,null,null,null,null,"Number of spans",null,"number","(per cent)",null,null,null,null,null,"HV","Network business","Third party impacts"]
[null,"Reset","REGULATORY REPORTING STATEMENT",null,{"$f":"LEFT(dms_MultiYear_FinalYear_Result,2)&RIGHT(dms_MultiYear_FinalYear_Result,2)","v":"2025"},"=LEFT(dms_MultiYear_FinalYear_Result,2)&RIGHT(dms_MultiYear_FinalYear_Result,2)",null,"Formula errors are OK",null,null,null,null,null,"Reconductor - Single circuit","Number","net circuit km added","net circuit km added","net circuit km added","net circuit km added",null,"years","years",null,null,null,null,null,"Years",null,"number",null,null,null,null,null,null,"Zone substation","Third party","Transmission failure"]
[null,"RFM","ROLL FORWARD MODEL",null,{"$f":"LEFT(dms_CRCP_FinalYear_Result,2)&RIGHT(dms_CRCP_FinalYear_Result,2)","v":"2018"},"=LEFT(dms_CRCP_FinalYear_Result,2)&RIGHT(dms_CRCP_FinalYear_Result,2)",null,null,null,null,null,null,null,"Reconductor - Dual circuit","Number","total spend $0s","total spend $0s","total spend $0s","total spend $0s",null,null,null,null,null,null,null,null,"Years",null,"number",null,null,null,null,null,null,"Subtransmission","Unknown","Load shedding"]
[null,"WACC","WEIGHTED AVERAGE COST OF CAPITAL",null,{"$f":"LEFT(dms_MultiYear_FinalYear_Result,2)&RIGHT(dms_MultiYear_FinalYear_Result,2)","v":"2025"},"=LEFT(dms_MultiYear_FinalYear_Result,2)&RIGHT(dms_MultiYear_FinalYear_Result,2)",null,null,null,null,null,null,null,"Other",null,"net circuit km added","net circuit km added","net circuit km added","net circuit km added",null,null,null,null,null,null,null,null,"Trees",null,"number",null,null,null,null,null,"Other","insert description of 'other'","Vegetation","Inter-distributor connection failure"]
[null,null,null,null,null,null,null,null,null,null,null,null,null,null,null,"total spend $0s","total spend $0s","total spend $0s","total spend $0s",null,null,null,null,null,null,null,null,"Trees",null,"number",null,null,null,null,null,"Overloads","-","Weather","Other"]
[null,"dms_DataQuality_List",null,null,null,null,null,null,null,null,null,null,null,null,null,"0's",null,"$0s",null,null,null,null,null,null,null,null,null,"Defects",null,"number",null,null,null,null,null,"Planned","-","2 - STPIS Exclusion (3.3)(a)"]
[null,"Actual",null,null,null,null,null,null,null,null,null,null,null,null,null,"0's",null,null,null,null,null,null,null,null,null,null,null,"Defects",null,"number",null,null,null,null,null,"Network business","Network error","3 - STPIS Exclusion (3.3)(a)"]
[null,"Estimate",null,null,null,null,null,null,null,null,null,null,null,null,null,"0's",null,null,null,null,null,null,null,null,null,null,null,"Spans",null,"number",null,null,null,null,null,null,"Switching and protection error","4 - STPIS Exclusion (3.3)(a)"]
[null,"Consolidated",null,null,null,null,null,null,null,null,null,null,null,null,null,"$0s",null,null,null,null,null,null,null,null,null,null,null,"km",null,"(per cent)",null,null,null,null,null,"Third party","Fire","5 - STPIS Exclusion (3.3)(a)"]
[null,"Recast",null,null,null,null,null,null,null,null,null,null,null,null,null,null,null,null,null,null,null,null,null,null,null,null,null,"Spans",null,"(per cent)","",null,null,null,null,null,"Other","6 - STPIS Exclusion (3.3)(a)"]
[null,"Public",null,null,null,null,null,null,null,null,null,null,null,null,null,null,null,null,null,null,null,null,null,null,null,null,null,null,null,null,null,null,null,null,null,null,"Dig-in","7 - STPIS Exclusion (3.3)(a)"]
[null,null,null,null,null,null,null,null,null,null,null,null,null,null,null,null,null,null,null,null,null,null,null,null,null,null,null,null,null,null,null,null,null,null,null,null,"Unauthorised access"]
[null,"For all files either AER or business needs to be able to specify the type of submission","For PTRM & RFM templates we must provide a choice in case they change their form of control - otherwise it is drawn from the business specific lookup table above.",null,null,null,null,null,null,null,null,null,null,null,"For PTRM files - this field set the text for the named range \"DMS_Xfactor\" which in all cases is simply the text \"x factors\" - this saves putting in each old gas PTRM file ",null,null,null,null,null,null,null,null,null,"for TNSP only",null,null,null,null,null,null,null,null,null,null,null,"Vehicle impact"]
[null,"dms_SourceList","dms_FormControl_Choices",null,null,null,null,null,null,null,null,null,null,null,"DMS_Xfactor",null,null,null,null,null,null,null,null,null,"dms_030601_01_UOM",null,"dms_030701_01_UOM","dms_030702_01_UOM",null,null,null,null,null,null,null,"Unknown","Unknown"]
[null,"After appeal","Revenue cap",null,null,null,null,null,null,null,null,null,null,null,"x factors",null,null,null,null,null,null,null,null,null,"%",null,"Number of spans","km",null,null,null,null,null,null,null,"Vegetation","Blow-in/Fall-in - NSP responsibility"]
[null,"Draft decision","Revenue yield",null,null,null,null,null,null,null,null,null,null,null,null,null,null,null,null,null,null,null,null,null,"number",null,"Years","%",null,null,null,null,null,null,null,null,"Grow-in - NSP responsibility"]
[null,"Final decision","Weighted average price cap",null,null,null,null,null,null,null,null,null,null,null,null,null,null,null,null,null,null,null,null,null,"number",null,"Trees","km",null,null,null,null,null,null,null,null,"Blow-in/Fall-in - Other responsible party"]
[null,"PTRM update 1",null,null,null,null,null,null,null,null,null,null,null,null,null,null,null,null,null,null,null,null,null,null,"%",null,"Defects","number",null,null,null,null,null,null,null,null,"Grow-in - Other responsible party"]
[null,"PTRM update 2",null,null,null,null,null,null,null,null,null,null,null,null,null,null,null,null,null,null,null,null,null,null,"number",null,"Number of spans",null,null,null,null,null,null,null,null,"Weather"]
[null,"PTRM update 3",null,null,null,null,null,null,null,null,null,null,null,null,null,null,null,null,null,null,null,null,null,null,"number",null,"km",null,null,null,null,null,null,null,null,"2 - STPIS Exclusion (3.3)(a)"]
[null,"PTRM update 4",null,null,null,null,null,null,null,null,null,null,null,null,null,null,null,null,null,null,null,null,null,null,"%",null,"km",null,null,null,null,null,null,null,null,"3 - STPIS Exclusion (3.3)(a)"]
[null,"PTRM update 5",null,null,null,null,null,null,null,null,null,null,null,null,null,null,null,null,null,null,null,null,null,null,"number",null,"Number of spans",null,null,null,null,null,null,null,null,"4 - STPIS Exclusion (3.3)(a)"]
[null,"PTRM update 6",null,null,null,null,null,null,null,null,null,null,null,null,null,null,null,null,null,null,null,null,null,null,"number",null,null,null,null,null,null,null,null,null,null,"5 - STPIS Exclusion (3.3)(a)"]
[null,"PTRM update 7",null,null,null,null,null,null,null,null,null,null,null,null,null,null,null,null,null,null,null,null,null,null,"%",null,null,null,null,null,null,null,null,null,null,"6 - STPIS Exclusion (3.3)(a)"]
[null,"Regulatory proposal",null,null,null,null,null,null,null,null,null,null,null,null,null,null,null,null,null,null,null,null,null,null,"number",null,null,null,null,null,null,null,null,null,null,"7 - STPIS Exclusion (3.3)(a)"]
[null,"Reporting",null,null,null,null,null,null,null,null,null,null,null,null,null,null,null,null,null,null,null,null,null,null,"%"]
[null,"Revised regulatory proposal",null,null,null,null,null,null,null,null,null,null,null,null,null,null,null,null,null,null,null,null,null,null,"number"]
[null,null,null,null,null,null,null,null,null,null,null,null,null,null,null,null,null,null,null,null,null,null,null,null,"%"]
[null,null,null,null,null,null,null,null,null,null,null,null,null,null,null,null,null,null,null,null,null,null,null,null,"number"]
[]
[]
[]
[null,"These are indeces and lookup values for various dates. All step from the value placed in FRCP_y1 on the business and other details worksheet",{"$f":"IF(dms_FifthFeeder_flag_NSP=\"NO\",\"This NSP has only 4 feeder categories\",\"This NSP has 5 feeder categories\")","v":"This NSP has only 4 feeder categories"},null,null,null,null,null,null,null,null,"These date tables are currently used in the Recast templates to provide column headings and conditional formatting"]
[null,"dms_FRCPlength_Num_List","dms_FinalYear_List","dms_CRCPlength_Num_List","dms_CFinalYear_List","dms_FRCP_years",null,"dms_CRCP_years",null,"dms_CRCP_index",null,"CRY from input cell on business sheet","CRY - financial","dms_FinYears","CRY calendar","dms_CalYears",null,null,null,null,null,null,null,null,"These \"row descriptions\" are the column headings in the various templates but become row descriptions in the ETL process"]
[null,1,"dms_FRCP_y1",1,"CRCP_y1",{"$f":"FRCP_y1","v":"2020-21"},"dms_FRCP_y1",{"$f":"IF(dms_RPT=\"financial\",VALUE(LEFT(dms_FRCP_y1,4)-1)&\"-\"&TEXT(VALUE(MID(dms_FRCP_y1,3,2)),\"00\"),VALUE(LEFT(dms_FRCP_y1,4)-1))","v":"2019-20"},"dms_CRCP_yZ",1,null,{"$f":"CRY","v":"2017-18"},{"$f":"VALUE(LEFT(CRY,4))&\"-\"&TEXT(MID(CRY,3,2)+1,\"00\")","v":"2017-18"},"dms_CRYf_y1",{"$f":"VALUE(LEFT(CRY,4)+1)","v":2018},"dms_CRYc_y1",null,null,null,null,null,null,null,null,null,"Table 6.3 sustained interruptions - row descriptions"]
[null,2,"dms_FRCP_y2",2,"CRCP_y2",{"$f":"IF(dms_RPT=\"financial\",VALUE(LEFT(dms_FRCP_y1,4)+1)&\"-\"&TEXT(VALUE(RIGHT(dms_FRCP_y1,2)+1),\"00\"),VALUE(LEFT(dms_FRCP_y1,4)+1))","v":"2021-22"},"dms_FRCP_y2",{"$f":"IF(dms_RPT=\"financial\",VALUE(LEFT(dms_CRCP_yZ,4)-1)&\"-\"&TEXT(VALUE(MID(dms_CRCP_yZ,3,2)),\"00\"),VALUE(LEFT(dms_CRCP_yZ,4)-1))","v":"2018-19"},"dms_CRCP_yY",2,null,null,{"$f":"VALUE(LEFT(dms_CRYf_y1,4)+1)&\"-\"&TEXT(MID(dms_CRYf_y1,3,2)+2,\"00\")","v":"2018-19"},"dms_CRYf_y2",{"$f":"VALUE(LEFT(dms_CRYc_y1,4)+1)","v":2019},"dms_CRYc_y2",null,null,null,null,null,null,null,null,null,"dms_060301_CustNo_Affected_Row","dms_060301_Avg_Duration_Sustained_Int_Row","dms_060301_Effect_unplanned_SAIDI_Row","dms_060301_Effect_unplanned_SAIFI_Row"]
[null,3,"=IF(dms_Model=\"ARR\",15,9)",3,"=IF(dms_Model=\"ARR\",15,9)",{"$f":"IF(dms_RPT=\"financial\",VALUE(LEFT(dms_FRCP_y2,4)+1)&\"-\"&TEXT(VALUE(RIGHT(dms_FRCP_y2,2)+1),\"00\"),VALUE(LEFT(dms_FRCP_y2,4)+1))","v":"2022-23"},"dms_FRCP_y3",{"$f":"IF(dms_RPT=\"financial\",VALUE(LEFT(dms_CRCP_yY,4)-1)&\"-\"&TEXT(VALUE(MID(dms_CRCP_yY,3,2)),\"00\"),VALUE(LEFT(dms_CRCP_yY,4)-1))","v":"2017-18"},"dms_CRCP_yX",3,null,null,{"$f":"VALUE(LEFT(dms_CRYf_y2,4)+1)&\"-\"&TEXT(MID(dms_CRYf_y2,3,2)+2,\"00\")","v":"2019-20"},"dms_CRYf_y3",{"$f":"VALUE(LEFT(dms_CRYc_y2,4)+1)","v":2020},"dms_CRYc_y3",null,null,null,null,null,null,null,null,null,"Number of customers affected by the interruption","Average duration of sustained customer interruption","Effect on unplanned SAIDI","Effect on unplanned SAIFI"]
[null,4,"dms_FRCP_y4",4,"CRCP_y4",{"$f":"IF(dms_RPT=\"financial\",VALUE(LEFT(dms_FRCP_y3,4)+1)&\"-\"&TEXT(VALUE(RIGHT(dms_FRCP_y3,2)+1),\"00\"),VALUE(LEFT(dms_FRCP_y3,4)+1))","v":"2023-24"},"dms_FRCP_y4",{"$f":"IF(dms_RPT=\"financial\",VALUE(LEFT(dms_CRCP_yX,4)-1)&\"-\"&TEXT(VALUE(MID(dms_CRCP_yX,3,2)),\"00\"),VALUE(LEFT(dms_CRCP_yX,4)-1))","v":"2016-17"},"dms_CRCP_yW",4,null,null,{"$f":"VALUE(LEFT(dms_CRYf_y3,4)+1)&\"-\"&TEXT(MID(dms_CRYf_y3,3,2)+2,\"00\")","v":"2020-21"},"dms_CRYf_y4",{"$f":"VALUE(LEFT(dms_CRYc_y3,4)+1)","v":2021},"dms_CRYc_y4"]
[null,5,"dms_FRCP_y5",5,"CRCP_y5",{"$f":"IF(dms_RPT=\"financial\",VALUE(LEFT(dms_FRCP_y4,4)+1)&\"-\"&TEXT(VALUE(RIGHT(dms_FRCP_y4,2)+1),\"00\"),VALUE(LEFT(dms_FRCP_y4,4)+1))","v":"2024-25"},"dms_FRCP_y5",{"$f":"IF(dms_RPT=\"financial\",VALUE(LEFT(dms_CRCP_yW,4)-1)&\"-\"&TEXT(VALUE(MID(dms_CRCP_yW,3,2)),\"00\"),VALUE(LEFT(dms_CRCP_yW,4)-1))","v":"2015-16"},"dms_CRCP_yV",5,null,null,{"$f":"VALUE(LEFT(dms_CRYf_y4,4)+1)&\"-\"&TEXT(MID(dms_CRYf_y4,3,2)+2,\"00\")","v":"2021-22"},"dms_CRYf_y5",{"$f":"VALUE(LEFT(dms_CRYc_y4,4)+1)","v":2022},"dms_CRYc_y5"]
[null,6,"dms_FRCP_y6",6,"CRCP_y6",{"$f":"IF(dms_RPT=\"financial\",VALUE(LEFT(dms_FRCP_y5,4)+1)&\"-\"&TEXT(VALUE(RIGHT(dms_FRCP_y5,2)+1),\"00\"),VALUE(LEFT(dms_FRCP_y5,4)+1))","v":"2025-26"},"dms_FRCP_y6",{"$f":"IF(dms_RPT=\"financial\",VALUE(LEFT(dms_CRCP_yV,4)-1)&\"-\"&TEXT(VALUE(MID(dms_CRCP_yV,3,2)),\"00\"),VALUE(LEFT(dms_CRCP_yV,4)-1))","v":"2014-15"},"dms_CRCP_yU",6,null,null,{"$f":"VALUE(LEFT(dms_CRYf_y5,4)+1)&\"-\"&TEXT(MID(dms_CRYf_y5,3,2)+2,\"00\")","v":"2022-23"},"dms_CRYf_y6",{"$f":"VALUE(LEFT(dms_CRYc_y5,4)+1)","v":2023},"dms_CRYc_y6"]
[null,7,"dms_FRCP_y7",7,"CRCP_y7",{"$f":"IF(dms_RPT=\"financial\",VALUE(LEFT(dms_FRCP_y6,4)+1)&\"-\"&TEXT(VALUE(RIGHT(dms_FRCP_y6,2)+1),\"00\"),VALUE(LEFT(dms_FRCP_y6,4)+1))","v":"2026-27"},"dms_FRCP_y7",{"$f":"IF(dms_RPT=\"financial\",VALUE(LEFT(dms_CRCP_yU,4)-1)&\"-\"&TEXT(VALUE(MID(dms_CRCP_yU,3,2)),\"00\"),VALUE(LEFT(dms_CRCP_yU,4)-1))","v":"2013-14"},"dms_CRCP_yT",7,null,null,{"$f":"VALUE(LEFT(dms_CRYf_y6,4)+1)&\"-\"&TEXT(MID(dms_CRYf_y6,3,2)+2,\"00\")","v":"2023-24"},"dms_CRYf_y7",{"$f":"VALUE(LEFT(dms_CRYc_y6,4)+1)","v":2024},"dms_CRYc_y7",null,null,null,null,null,null,null,null,null,"Table 6.1 telephone answering - row descriptions and start date"]
[null,8,"dms_FRCP_y8",8,"CRCP_y8",{"$f":"IF(dms_RPT=\"financial\",VALUE(LEFT(dms_FRCP_y7,4)+1)&\"-\"&TEXT(VALUE(RIGHT(dms_FRCP_y7,2)+1),\"00\"),VALUE(LEFT(dms_FRCP_y7,4)+1))","v":"2027-28"},"dms_FRCP_y8",{"$f":"IF(dms_RPT=\"financial\",VALUE(LEFT(dms_CRCP_yT,4)-1)&\"-\"&TEXT(VALUE(MID(dms_CRCP_yT,3,2)),\"00\"),VALUE(LEFT(dms_CRCP_yT,4)-1))","v":"2012-13"},"dms_CRCP_yS",8,null,null,{"$f":"VALUE(LEFT(dms_CRYf_y7,4)+1)&\"-\"&TEXT(MID(dms_CRYf_y7,3,2)+2,\"00\")","v":"2024-25"},"dms_CRYf_y8",{"$f":"VALUE(LEFT(dms_CRYc_y7,4)+1)","v":2025},"dms_CRYc_y8",null,null,null,null,null,null,null,null,null,"dms_060101_Rows","dms_060102_Rows","dms_060101_StartDateTxt"]
[null,9,"dms_FRCP_y9",9,"CRCP_y9",{"$f":"IF(dms_RPT=\"financial\",VALUE(LEFT(dms_FRCP_y8,4)+1)&\"-\"&TEXT(VALUE(RIGHT(dms_FRCP_y8,2)+1),\"00\"),VALUE(LEFT(dms_FRCP_y8,4)+1))","v":"2028-29"},"dms_FRCP_y9",{"$f":"IF(dms_RPT=\"financial\",VALUE(LEFT(dms_CRCP_yS,4)-1)&\"-\"&TEXT(VALUE(MID(dms_CRCP_yS,3,2)),\"00\"),VALUE(LEFT(dms_CRCP_yS,4)-1))","v":"2011-12"},"dms_CRCP_yR",9,null,null,{"$f":"VALUE(LEFT(dms_CRYf_y8,4)+1)&\"-\"&TEXT(MID(dms_CRYf_y8,3,2)+2,\"00\")","v":"2025-26"},"dms_CRYf_y9",{"$f":"VALUE(LEFT(dms_CRYc_y8,4)+1)","v":2026},"dms_CRYc_y9",null,null,null,null,null,null,null,null,null,"Total number of calls \n(after removing excluded events)","Number of calls answered within 30 seconds \n(after excluding excluded events) ",{"$f":"dms_060701_StartDateTxt","v":"1-Jul-2017"}]
[null,10,"=IFERROR(IF(dms_Model=\"ARR\",(MAX(0,dms_0608_LastRow-dms_0608_OffsetRows)),\"not an ARR\"),\"6.8 not present\")",10,"=IFERROR(IF(dms_Model=\"ARR\",(MAX(0,dms_0608_LastRow-dms_0608_OffsetRows)),\"not an ARR\"),\"6.8 not present\")",{"$f":"IF(dms_RPT=\"financial\",VALUE(LEFT(dms_FRCP_y9,4)+1)&\"-\"&TEXT(VALUE(RIGHT(dms_FRCP_y9,2)+1),\"00\"),VALUE(LEFT(dms_FRCP_y9,4)+1))","v":"2029-30"},"dms_FRCP_y10",{"$f":"IF(dms_RPT=\"financial\",VALUE(LEFT(dms_CRCP_yR,4)-1)&\"-\"&TEXT(VALUE(MID(dms_CRCP_yR,3,2)),\"00\"),VALUE(LEFT(dms_CRCP_yR,4)-1))","v":"2010-11"},"dms_CRCP_yQ",10,null,null,{"$f":"VALUE(LEFT(dms_CRYf_y9,4)+1)&\"-\"&TEXT(MID(dms_CRYf_y9,3,2)+2,\"00\")","v":"2026-27"},"dms_CRYf_y10",{"$f":"VALUE(LEFT(dms_CRYc_y9,4)+1)","v":2027},"dms_CRYc_y10"]
[null,11,"dms_FRCP_y11",11,"CRCP_y11",{"$f":"IF(dms_RPT=\"financial\",VALUE(LEFT(dms_FRCP_y10,4)+1)&\"-\"&TEXT(VALUE(RIGHT(dms_FRCP_y10,2)+1),\"00\"),VALUE(LEFT(dms_FRCP_y10,4)+1))","v":"2030-31"},"dms_FRCP_y11",{"$f":"IF(dms_RPT=\"financial\",VALUE(LEFT(dms_CRCP_yQ,4)-1)&\"-\"&TEXT(VALUE(MID(dms_CRCP_yQ,3,2)),\"00\"),VALUE(LEFT(dms_CRCP_yQ,4)-1))","v":"2009-10"},"dms_CRCP_yP",11,null,null,{"$f":"VALUE(LEFT(dms_CRYf_y10,4)+1)&\"-\"&TEXT(MID(dms_CRYf_y10,3,2)+2,\"00\")","v":"2027-28"},"dms_CRYf_y11",{"$f":"VALUE(LEFT(dms_CRYc_y10,4)+1)","v":2028},"dms_CRYc_y11"]
[null,12,"dms_FRCP_y12",12,"CRCP_y12",{"$f":"IF(dms_RPT=\"financial\",VALUE(LEFT(dms_FRCP_y11,4)+1)&\"-\"&TEXT(VALUE(RIGHT(dms_FRCP_y11,2)+1),\"00\"),VALUE(LEFT(dms_FRCP_y11,4)+1))","v":"2031-32"},"dms_FRCP_y12",{"$f":"IF(dms_RPT=\"financial\",VALUE(LEFT(dms_CRCP_yP,4)-1)&\"-\"&TEXT(VALUE(MID(dms_CRCP_yP,3,2)),\"00\"),VALUE(LEFT(dms_CRCP_yP,4)-1))","v":"2008-09"},"dms_CRCP_yO",12,null,null,{"$f":"VALUE(LEFT(dms_CRYf_y11,4)+1)&\"-\"&TEXT(MID(dms_CRYf_y11,3,2)+2,\"00\")","v":"2028-29"},"dms_CRYf_y12",{"$f":"VALUE(LEFT(dms_CRYc_y11,4)+1)","v":2029},"dms_CRYc_y12"]
[null,13,"dms_FRCP_y13",13,"CRCP_y13",{"$f":"IF(dms_RPT=\"financial\",VALUE(LEFT(dms_FRCP_y12,4)+1)&\"-\"&TEXT(VALUE(RIGHT(dms_FRCP_y12,2)+1),\"00\"),VALUE(LEFT(dms_FRCP_y12,4)+1))","v":"2032-33"},"dms_FRCP_y13",{"$f":"IF(dms_RPT=\"financial\",VALUE(LEFT(dms_CRCP_yO,4)-1)&\"-\"&TEXT(VALUE(MID(dms_CRCP_yO,3,2)),\"00\"),VALUE(LEFT(dms_CRCP_yO,4)-1))","v":"2007-08"},"dms_CRCP_yN",13,null,null,{"$f":"VALUE(LEFT(dms_CRYf_y12,4)+1)&\"-\"&TEXT(MID(dms_CRYf_y12,3,2)+2,\"00\")","v":"2029-30"},"dms_CRYf_y13",{"$f":"VALUE(LEFT(dms_CRYc_y12,4)+1)","v":2030},"dms_CRYc_y13",null,null,null,null,null,null,null,null,null,null,null,null,null,null,"dms_0603_FeederList",{"$f":"INDEX(dms_FeederName_1,MATCH(dms_TradingName,dms_TradingName_List))","v":"CBD"},{"$f":"INDEX(dms_FeederName_2,MATCH(dms_TradingName,dms_TradingName_List))","v":"Urban"},{"$f":"INDEX(dms_FeederName_3,MATCH(dms_TradingName,dms_TradingName_List))","v":"Short rural"},{"$f":"INDEX(dms_FeederName_4,MATCH(dms_TradingName,dms_TradingName_List))","v":"Long rural"}]
[null,14,"dms_FRCP_y14",14,"CRCP_y14",{"$f":"IF(dms_RPT=\"financial\",VALUE(LEFT(dms_FRCP_y13,4)+1)&\"-\"&TEXT(VALUE(RIGHT(dms_FRCP_y13,2)+1),\"00\"),VALUE(LEFT(dms_FRCP_y13,4)+1))","v":"2033-34"},"dms_FRCP_y14",{"$f":"IF(dms_RPT=\"financial\",VALUE(LEFT(dms_CRCP_yN,4)-1)&\"-\"&TEXT(VALUE(MID(dms_CRCP_yN,3,2)),\"00\"),VALUE(LEFT(dms_CRCP_yN,4)-1))","v":"2006-07"},"dms_CRCP_yM",14,null,null,{"$f":"VALUE(LEFT(dms_CRYf_y13,4)+1)&\"-\"&TEXT(MID(dms_CRYf_y13,3,2)+2,\"00\")","v":"2030-31"},"dms_CRYf_y14",{"$f":"VALUE(LEFT(dms_CRYc_y13,4)+1)","v":2031},"dms_CRYc_y14",null,null,null,null,null,null,null,null,null,"Table 6.7.1 - daily performance data - unplanned - MAIFI  -- row descriptions and header named range values"]
[null,15,"dms_FRCP_y15",15,"CRCP_y15",{"$f":"IF(dms_RPT=\"financial\",VALUE(LEFT(dms_FRCP_y14,4)+1)&\"-\"&TEXT(VALUE(RIGHT(dms_FRCP_y14,2)+1),\"00\"),VALUE(LEFT(dms_FRCP_y14,4)+1))","v":"2034-35"},"dms_FRCP_y15",{"$f":"IF(dms_RPT=\"financial\",VALUE(LEFT(dms_CRCP_yM,4)-1)&\"-\"&TEXT(VALUE(MID(dms_CRCP_yM,3,2)),\"00\"),VALUE(LEFT(dms_CRCP_yM,4)-1))","v":"2005-06"},"dms_CRCP_yL",15,null,null,{"$f":"VALUE(LEFT(dms_CRYf_y14,4)+1)&\"-\"&TEXT(MID(dms_CRYf_y14,3,2)+2,\"00\")","v":"2031-32"},"dms_CRYf_y15",{"$f":"VALUE(LEFT(dms_CRYc_y14,4)+1)","v":2032},"dms_CRYc_y15",null,null,null,null,null,null,null,null,null,"These headings (Lists) are determined from the INDEX/MATCH function on the NSP selected on the Business & other details sheet"]
[null,null,null,null,null,null,null,null,null,null,null,null,{"$f":"VALUE(LEFT(dms_CRYf_y15,4)+1)&\"-\"&TEXT(MID(dms_CRYf_y15,3,2)+2,\"00\")","v":"2032-33"},"dms_CRYf_y16",{"$f":"VALUE(LEFT(dms_CRYc_y15,4)+1)","v":2033},"dms_CRYc_y16",null,null,null,null,null,null,null,null,"dms_060701_Feeder_Header_Lvl4",{"$f":"INDEX(dms_FeederName_1,MATCH(dms_TradingName,dms_TradingName_List))","v":"CBD"},{"$f":"INDEX(dms_FeederName_1,MATCH(dms_TradingName,dms_TradingName_List))","v":"CBD"},{"$f":"INDEX(dms_FeederName_2,MATCH(dms_TradingName,dms_TradingName_List))","v":"Urban"},{"$f":"INDEX(dms_FeederName_2,MATCH(dms_TradingName,dms_TradingName_List))","v":"Urban"},{"$f":"INDEX(dms_FeederName_3,MATCH(dms_TradingName,dms_TradingName_List))","v":"Short rural"},{"$f":"INDEX(dms_FeederName_3,MATCH(dms_TradingName,dms_TradingName_List))","v":"Short rural"},{"$f":"INDEX(dms_FeederName_4,MATCH(dms_TradingName,dms_TradingName_List))","v":"Long rural"},{"$f":"INDEX(dms_FeederName_4,MATCH(dms_TradingName,dms_TradingName_List))","v":"Long rural"},{"$f":"IF((INDEX(dms_FeederName_5,MATCH(dms_TradingName,dms_TradingName_List))=0),\"Network\",(INDEX(dms_FeederName_5,MATCH(dms_TradingName,dms_TradingName_List))))","v":"Network"},{"$f":"IF((INDEX(dms_FeederName_5,MATCH(dms_TradingName,dms_TradingName_List))=0),\"Network\",(INDEX(dms_FeederName_5,MATCH(dms_TradingName,dms_TradingName_List))))","v":"Network"},"Network","Network"]
[null,"These are drop down lists for businesses to select the correct FRCP_y1 on the business and other details worksheet.\nThis also populates the column headings in the worksheets",null,null,null,null,null,null,null,null,null,null,{"$f":"VALUE(LEFT(dms_CRYf_y16,4)+1)&\"-\"&TEXT(MID(dms_CRYf_y16,3,2)+2,\"00\")","v":"2033-34"},"dms_CRYf_y17",{"$f":"VALUE(LEFT(dms_CRYc_y16,4)+1)","v":2034},"dms_CRYc_y17"]
[null,"dms_RCP_fyear_list","dms_CRY_ListF","dms_CRY_ListC","dms_RCP_cyear_list","dms_FRCP_fyear_list","dms_FRCP_ListF","dms_FRCP_ListC","dms_FRCP_cyear_list",null,null,null,{"$f":"VALUE(LEFT(dms_CRYf_y17,4)+1)&\"-\"&TEXT(MID(dms_CRYf_y17,3,2)+2,\"00\")","v":"2034-35"},"dms_CRYf_y18",{"$f":"VALUE(LEFT(dms_CRYc_y17,4)+1)","v":2035},"dms_CRYc_y18",null,null,null,null,null,null,null,null,"dms_060701_Rows","All events","After removing excluded events","All events","After removing excluded events","All events","After removing excluded events","All events","After removing excluded events","All events","After removing excluded events","All events","After removing excluded events"]
[null,"dms_fy1","2005-06","2006","dms_cy1","dms_frcp_fy1","2010-11",2011,"dms_crcp_cy1",null,null,null,{"$f":"VALUE(LEFT(dms_CRYf_y18,4)+1)&\"-\"&TEXT(MID(dms_CRYf_y18,3,2)+2,\"00\")","v":"2035-36"},"dms_CRYf_y19",{"$f":"VALUE(LEFT(dms_CRYc_y18,4)+1)","v":2036},"dms_CRYc_y19",null,null,null,null,null,null,null,null,null,"the number of column headings changes from 10 to 12 depending on the number of feeder categories for the NSP"]
[null,"dms_fy2","2006-07","2007","dms_cy2","dms_frcp_fy2","2011-12",2012,"dms_crcp_cy2",null,null,null,{"$f":"VALUE(LEFT(dms_CRYf_y19,4)+1)&\"-\"&TEXT(MID(dms_CRYf_y19,3,2)+2,\"00\")","v":"2036-37"},"dms_CRYf_y20",{"$f":"VALUE(LEFT(dms_CRYc_y19,4)+1)","v":2037},"dms_CRYc_y20"]
[null,"dms_fy3","2007-08","2008","dms_cy3","dms_frcp_fy3","2012-13",2013,"dms_crcp_cy3"]
[null,"dms_fy4","2008-09","2009","dms_cy4","dms_frcp_fy4","2013-14",2014,"dms_crcp_cy4"]
[null,"dms_fy5","2009-10",2010,"dms_cy5","dms_frcp_fy5","2014-15",2015,"dms_crcp_cy5"]
[null,"dms_fy6","2010-11",2011,"dms_cy6","dms_frcp_fy6","2015-16",2016,"dms_crcp_cy6",null,null,null,null,null,null,null,null,null,null,null,null,null,null,null,null,"Table 6.8.1 - row descriptions"]
[null,"dms_fy7","2011-12",2012,"dms_cy7","dms_frcp_fy7","2016-17",2017,"dms_crcp_cy7",null,null,null,null,null,null,null,null,null,null,null,null,null,null,null,null,"dms_060801_01_Rows","dms_060801_02_Rows","dms_060801_03_Rows","dms_060801_04_Rows"]
[null,"dms_fy8","2012-13",2013,"dms_cy8","dms_frcp_fy8","2017-18",2018,"dms_crcp_cy8",null,null,"2005-06","2006",null,null,null,null,null,null,null,null,null,null,null,null,"Number of interruptions","Duration of interruptions","Total unplanned minutes off supply","Effect on unplanned MAIFI"]
[null,"dms_fy9","2013-14",2014,"dms_cy9","dms_frcp_fy9","2018-19",2019,"dms_crcp_cy9",null,null,"2006-07","2007"]
[null,"dms_fy10","2014-15",2015,"dms_cy10","dms_frcp_fy10","2019-20",2020,"dms_crcp_cy10",null,null,"2007-08","2008"]
[null,"dms_fy11","2015-16",2016,"dms_cy11","dms_frcp_fy11","2020-21",2021,"dms_crcp_cy11",null,null,"2008-09","2009"]
[null,"dms_fy12","2016-17",2017,"dms_cy12","dms_frcp_fy12","2021-22",2022,"dms_crcp_cy12",null,null,"2009-10",2010]
[null,"dms_fy13","2017-18",2018,"dms_cy13","dms_frcp_fy13","2022-23",2023,"dms_crcp_cy13",null,null,"2010-11",2011,null,null,null,null,null,null,null,null,null,null,null,null,"Table 7.9.4 - market impact component - row descriptions"]
[null,"dms_fy14","2018-19",2019,"dms_cy14","dms_frcp_fy14","2023-24",2024,"dms_crcp_cy14",null,null,"2011-12",2012,null,null,null,null,null,null,null,null,null,null,null,"dms_070904_01_Rows","without exclusions","with exclusions"]
[null,"dms_fy15","2019-20",2020,"dms_cy15","dms_frcp_fy15","2024-25",2025,"dms_crcp_cy15",null,null,"2012-13",2013]
[null,"dms_fy16","2020-21",2021,"dms_cy16",null,null,null,null,null,null,"2013-14",2014]
[null,"dms_fy17","2021-22",2022,"dms_cy17",null,null,null,null,null,null,"2014-15",2015]
[null,"dms_fy18","2022-23",2023,"dms_cy18",null,null,null,null,null,null,"2015-16",2016]
[null,"dms_fy19","2023-24",2024,"dms_cy19",null,null,null,null,null,null,"2016-17",2017,null,null,null,null,null,null,null,null,null,null,null,null,"Use this to add to existing files"]
[null,"dms_fy20","2024-25",2025,"dms_cy20",null,null,null,null,null,null,"2017-18",2018,null,null,null,null,null,null,null,null,null,null,null,null,"ARR's  6.8 STPIS exclusions"]
[null,null,null,null,null,null,null,null,null,null,null,"2018-19",2019,null,null,null,null,null,null,null,null,null,null,null,null,"dms_060801_Event_Date","dms_060801_OutageID","dms_060801_FeederID","dms_060801_FeederClass","dms_060801_CauseID","dms_060801_01_Values","dms_060801_02_Values","dms_060801_03_Values","dms_060801_Excl_Cat","dms_060801_04_Values"]
[null,null,null,null,null,null,null,null,null,null,null,"2019-20",2020]
[null,null,null,null,null,null,null,null,null,null,null,"2020-21",2021]
[null,null,null,null,null,null,null,null,null,null,null,"2021-22",2022,null,null,null,null,null,null,null,null,null,null,null,null,"CA 6.3 sustained interruptions"]
[null,null,null,null,null,null,null,null,null,null,null,"2022-23",2023,null,null,null,null,null,null,null,null,null,null,null,null,"dms_060301_Event_Date","dms_060301_Event_Time","dms_060301_AssetID","dms_060301_FeederClass","dms_060301_Reason","dms_060301_DetailedReason","dms_060301_CustNo_Affected_Values","dms_060301_Avg_Duration_Sustained_Int_Values","dms_060301_Effect_unplanned_SAIDI_Values","dms_060301_Effect_unplanned_SAIFI_Values","dms_060301_MED"]
[null,null,null,null,null,null,null,null,null,null,null,"2023-24",2024]
[null,null,null,null,null,null,null,null,null,null,null,"2024-25",2025]
[null,null,null,null,null,null,null,null,null,null,null,"2025-26",2026]
[null,null,null,null,null,null,null,null,null,null,null,"2026-27",2027]
[null,null,null,null,null,null,null,null,null,null,null,"2027-28",2028]
[null,null,null,null,null,null,null,null,null,null,null,"2028-29",2029]
[null,null,null,null,null,null,null,null,null,null,null,"2029-30",2030]
[null,null,null,null,null,null,null,null,null,null,null,"2030-31",2031]
[null,null,null,null,null,null,null,null,null,null,null,"2031-32",2032]
[null,null,null,null,null,null,null,null,null,null,null,"2032-33",2033]
[null,null,null,null,null,null,null,null,null,null,null,"2033-34",2034]
[null,null,null,null,null,null,null,null,null,null,null,"2034-35",2035]
[null,null,null,null,null,null,null,null,null,null,null,"2035-36",2036]

{"sheet":"Instructions","index":1,"n_rows":27,"n_cols":4,"rows_kept":27,"cut":false,"hidden":false,"merged":[[24,2,24,4],[25,2,25,3],[26,2,26,4],[8,2,8,4],[10,2,10,4],[12,2,12,4],[20,2,20,4],[22,2,22,4],[7,2,7,3],[1,1,1,5],[2,1,2,5],[3,2,3,4],[4,2,4,4],[5,2,5,4]]}
[]
[null,{"$f":"CONCATENATE(dms_Segment,\" Network Service Provider\")","v":"Distribution Network Service Provider"}]
[null,"Annual Reporting RIN Template"]
[null,null,{"$f":"CONCATENATE(\"This template is to be used by \",dms_TradingName,\" to fulfil its reporting obligations to the AER.\")","v":"This template is to be used by Endeavour Energy to fulfil its reporting obligations to the AER."}]
[null,null,"INSTRUCTIONS"]
[null,null,"Complete the Business & other details worksheet before entering data or values in any other worksheets. The Business & other details worksheet is linked to other worksheets within the workbook and automatically generates certain column headings and conditional formatting."]
[]
[null,null,"Identifying CONFIDENTIAL INFORMATION:\n\nPlease use the macro at the top of each \nworksheet to identify confidential information. \n\n"]
[null,null,"-Do this by selecting the cell or cells that contain confidential information and then run the Mark selected cells as CONFIDENTIAL macro. This will format the cells a specific colour that is identified by the AER's database which in turn marks that information as confidential.\n\n-To reverse this, select the cell or cells and run the Return cells to NON-CONFIDENTIAL macro"]
[]
[null,null,"UNITS OF MEASURE\n\nAll amounts are to be unrounded and reported in nominal terms on a one for one basis: that is 1000 is to be entered as '1000'. Applicable units of measure may be identified in the table column headings or row descriptors.\n\n"]
[]
[null,null,"COLOUR CODING OF INPUT / NON-INPUT CELLS:"]
[null,null,null,"Yellow = Input cell (mandatory)"]
[null,null,null,"Darker yellow = input cell (mandatory)"]
[null,null,null,"Orange = input cell (if data available)"]
[null,null,null,"Grey = Not applicable/No inputs required"]
[null,null,null,"\nPLEASE DO NOT ENTER TEXT into cells that are to contain numeric data."]
[]
[]
[null,null,"WORKSHEET NAVIGATION\n\nMany tables in the worksheets have been \"grouped\" to allow for easy navigation. To ungroup or group data use the outline symbols in the left margin of excel (for Row groupings) or above the columns (for column groupings). \n\n\n\n"]
[]
[null,null,"RETURNING COMPLETED RESPONSES\n\nPlease return four (4) files - using the locked template - to the AER:\n \n1. A confidential version which must contain a complete set of all responses with confidential information marked using the Mark selected cells CONFIDENTIAL macro.\n\n2. An actual and an estimate version with confidential information marked using the Mark selection CONFIDENTIAL macro and which has been completed using the locked template file provided by the AER.\n\n3. A public version with confidential information either removed completely or aggregated in some form together with writtten consent to disclose the public version of the response.\n\nUse the drop down box on the Business and other details worksheet to identify the file as either confidential ('consolidated') or public. If the confidential and public versions of the consolidated file are exactly the same, only the public version of the file needs to be submitted to the AER."]
[]
[null,null,"SUBMITTING AMENDED DATA TO THE AER\n\nIf an NSP wishes to correct data previously submitted to the AER it should resubmit that data using the original completed submission as the starting point. Please make any necessary changes to the data. Data that is not being amended should be left unchanged. \n\nNSPs must identify the reason for the amendments in the Amendment Reason box on the  Business and other details worksheet. NSPs may provide further details regarding any amendments in the Amendments worksheet. \n\n."]
[null,null,"NSP may use Amended Data macro \nto highlight cells that contain amended data.\nNB: if data is also CONFIDENTIAL, re-apply \nthe Confidentiality macro after applying the \nAmended macro"]
[null,null,"Please resubmit two (2) files - a confidential version and a public version of the amended submission to the AER"]

{"sheet":"Contents","index":2,"n_rows":12,"n_cols":2,"rows_kept":12,"cut":false,"hidden":false,"merged":[]}
[null,"REGULATORY REPORTING STATEMENT"]
[null,{"$f":"dms_TradingName","v":"Endeavour Energy"}]
[null,{"$f":"CONCATENATE(\"Benchmarking RIN response \",CRY)","v":"Benchmarking RIN response 2017-18"}]
[]
[null,"CONTENTS"]
[]
[]
[]
[]
[]
[]
[null,"3.             ECONOMIC BENCHMARKING"]

{"sheet":"Business & other details","index":3,"n_rows":143,"n_cols":9,"rows_kept":143,"cut":false,"hidden":false,"merged":[[59,2,59,8],[18,4,18,7],[19,2,19,3],[19,4,19,7],[22,2,22,3],[22,4,22,7],[23,4,23,7],[24,2,24,3],[24,4,24,7],[32,1,32,8],[57,2,57,3],[58,4,58,8],[7,1,7,8],[11,1,11,8],[13,2,13,4],[14,2,14,4],[17,2,17,3],[17,4,17,7]]}
[null,{"$f":"IF(dms_DataQuality=\"backcast\",INDEX(dms_Worksheet_List,MATCH(dms_Model,dms_Model_List))&\" BACKCAST\",INDEX(dms_Worksheet_List,MATCH(dms_Model,dms_Model_List)))","v":"ECONOMIC BENCHMARKING"}]
[null,{"$f":"INDEX(dms_TradingNameFull_List,MATCH(dms_TradingName,dms_TradingName_List))","v":"Endeavour Energy"}]
[null,{"$f":"IF(SUM(dms_SingleYear_Model)>0,CONCATENATE(CRY),CONCATENATE(FRCP_y1,\" to \",dms_MultiYear_FinalYear_Result))","v":"2017-18"}]
[null,"BUSINESS & OTHER DETAILS"]
[]
[]
[null,"Instructions"]
[null,"Complete the following business details regulatory template before entering data or values in any other regulatory template. This regulatory template is linked to other cells within the spreadsheet and automatically generates column headings and conditional formatting to distinguish business specific input and non-input cells. "]
[]
[null,"SUBMISSION PARTICULARS INPUT SHEETS"]
[]
[null,"ENTITY DETAILS"]
[]
[null,"Short name","Endeavour Energy",null,null,"Select business name from drop down list first"]
[null,"ACN / ABN",{"$f":"INDEX(dms_ABN_List,MATCH(dms_TradingName,dms_TradingName_List))","v":11247365823}]
[]
[]
[null,"Business address","Address 1",null,{"$f":"INDEX(dms_Addr1_List,MATCH(dms_TradingName,dms_TradingName_List))","v":"51 Huntingwood Drive"}]
[null,null,null,"Address 2",{"$f":"IF(ISBLANK(INDEX(dms_Addr2_List,MATCH(dms_TradingName,dms_TradingName_List))),\"\",(INDEX(dms_Addr2_List,MATCH(dms_TradingName,dms_TradingName_List))))","v":""}]
[null,null,"Suburb",null,{"$f":"INDEX(dms_Suburb_List,MATCH(dms_TradingName,dms_TradingName_List))","v":"HUNTINGWOOD"}]
[null,null,null,"State",{"$f":"INDEX(dms_State_List,MATCH(dms_TradingName,dms_TradingName_List))","v":"NSW"},"p/code",{"$f":"INDEX(dms_PostCode_List,MATCH(dms_TradingName,dms_TradingName_List))","v":2148}]
[]
[null,"Postal address","Address 1",null,{"$f":"INDEX(dms_PAddr1_List,MATCH(dms_TradingName,dms_TradingName_List))","v":"PO Box 811"}]
[null,null,null,"Address 2",{"$f":"IF(ISBLANK(INDEX(dms_PAddr2_List,MATCH(dms_TradingName,dms_TradingName_List))),\"\",(INDEX(dms_PAddr2_List,MATCH(dms_TradingName,dms_TradingName_List))))","v":""}]
[null,null,"Suburb",null,{"$f":"INDEX(dms_PSuburb_List,MATCH(dms_TradingName,dms_TradingName_List))","v":"SEVEN HILLS"}]
[null,null,null,"State",{"$f":"INDEX(dms_PState_List,MATCH(dms_TradingName,dms_TradingName_List))","v":"NSW"},"p/code",{"$f":"INDEX(dms_PPostCode_List,MATCH(dms_TradingName,dms_TradingName_List))","v":1730}]
[]
[]
[null,"Contact name/s","Fiona Place"]
[null,"Contact phone/s","02 9853 6302"]
[null,"Contact email address/s","fiona.place@endeavourenergy.com.au "]
[]
[null,"REGULATORY CONTROL PERIODS"]
[]
[null,"Forthcoming regulatory control period","2020-21",{"$f":"dms_FRCP_y2","v":"2021-22"},{"$f":"dms_FRCP_y3","v":"2022-23"},{"$f":"dms_FRCP_y4","v":"2023-24"},{"$f":"dms_FRCP_y5","v":"2024-25"}]
[null,null,{"$f":"dms_FRCP_y6","v":"2025-26"},{"$f":"dms_FRCP_y7","v":"2026-27"},{"$f":"dms_FRCP_y8","v":"2027-28"},{"$f":"dms_FRCP_y9","v":"2028-29"},{"$f":"dms_FRCP_y10","v":"2029-30"}]
[]
[]
[null,"Current regulatory control period",{"$f":"dms_CRCP_FirstYear_Result","v":"2015-16"},{"$f":"IF(dms_RPT=\"financial\",VALUE(LEFT(CRCP_y1,4)+1)&\"-\"&TEXT(MID(CRCP_y1,3,2)+2,\"00\"),VALUE(LEFT(CRCP_y1,4)+1))","v":"2016-17"},{"$f":"IF(dms_RPT=\"financial\",VALUE(LEFT(CRCP_y1,4)+2)&\"-\"&TEXT(VALUE(MID(CRCP_y1,3,2)+3),\"00\"),VALUE(LEFT(CRCP_y1,4)+2))","v":"2017-18"},{"$f":"IF(dms_RPT=\"financial\",VALUE(LEFT(CRCP_y1,4)+3)&\"-\"&TEXT(MID(CRCP_y1,3,2)+4,\"00\"),VALUE(LEFT(CRCP_y1,4)+3))","v":"2018-19"},{"$f":"IF(dms_RPT=\"financial\",VALUE(LEFT(CRCP_y1,4)+4)&\"-\"&TEXT(MID(CRCP_y1,3,2)+5,\"00\"),VALUE(LEFT(CRCP_y1,4)+4))","v":"2019-20"}]
[null,null,{"$f":"IF(dms_RPT=\"financial\",VALUE(LEFT(CRCP_y1,4)+5)&\"-\"&TEXT(MID(CRCP_y1,3,2)+6,\"00\"),VALUE(LEFT(CRCP_y1,4)+5))","v":"2020-21"},{"$f":"IF(dms_RPT=\"financial\",VALUE(LEFT(CRCP_y1,4)+6)&\"-\"&TEXT(MID(CRCP_y1,3,2)+7,\"00\"),VALUE(LEFT(CRCP_y1,4)+6))","v":"2021-22"},{"$f":"IF(dms_RPT=\"financial\",VALUE(LEFT(CRCP_y1,4)+7)&\"-\"&TEXT(MID(CRCP_y1,3,2)+8,\"00\"),VALUE(LEFT(CRCP_y1,4)+7))","v":"2022-23"},{"$f":"IF(dms_RPT=\"financial\",VALUE(LEFT(CRCP_y1,4)+8)&\"-\"&TEXT(MID(CRCP_y1,3,2)+9,\"00\"),VALUE(LEFT(CRCP_y1,4)+8))","v":"2023-24"},{"$f":"IF(dms_RPT=\"financial\",VALUE(LEFT(CRCP_y1,4)+9)&\"-\"&TEXT(MID(CRCP_y1,3,2)+10,\"00\"),VALUE(LEFT(CRCP_y1,4)+9))","v":"2024-25"}]
[null,null,{"$f":"IF(dms_RPT=\"financial\",VALUE(LEFT(CRCP_y1,4)+10)&\"-\"&TEXT(MID(CRCP_y1,3,2)+11,\"00\"),VALUE(LEFT(CRCP_y1,4)+10))","v":"2025-26"},{"$f":"IF(dms_RPT=\"financial\",VALUE(LEFT(CRCP_y1,4)+11)&\"-\"&TEXT(MID(CRCP_y1,3,2)+12,\"00\"),VALUE(LEFT(CRCP_y1,4)+11))","v":"2026-27"},{"$f":"IF(dms_RPT=\"financial\",VALUE(LEFT(CRCP_y1,4)+12)&\"-\"&TEXT(MID(CRCP_y1,3,2)+13,\"00\"),VALUE(LEFT(CRCP_y1,4)+12))","v":"2027-28"},{"$f":"IF(dms_RPT=\"financial\",VALUE(LEFT(CRCP_y1,4)+13)&\"-\"&TEXT(MID(CRCP_y1,3,2)+14,\"00\"),VALUE(LEFT(CRCP_y1,4)+13))","v":"2028-29"},{"$f":"IF(dms_RPT=\"financial\",VALUE(LEFT(CRCP_y1,4)+14)&\"-\"&TEXT(MID(CRCP_y1,3,2)+15,\"00\"),VALUE(LEFT(CRCP_y1,4)+14))","v":"2029-30"}]
[]
[]
[null,"Previous regulatory control period",{"$f":"IF(dms_RPT=\"financial\",VALUE(LEFT(PRCP_y2,4)-1)&\"-\"&TEXT(VALUE(MID(PRCP_y2,3,2)),\"00\"),VALUE(LEFT(PRCP_y2,4)-1))","v":"2010-11"},{"$f":"IF(dms_RPT=\"financial\",VALUE(LEFT(PRCP_y3,4)-1)&\"-\"&TEXT(VALUE(MID(PRCP_y3,3,2)),\"00\"),VALUE(LEFT(PRCP_y3,4)-1))","v":"2011-12"},{"$f":"IF(dms_RPT=\"financial\",VALUE(LEFT(PRCP_y4,4)-1)&\"-\"&TEXT(VALUE(MID(PRCP_y4,3,2)),\"00\"),VALUE(LEFT(PRCP_y4,4)-1))","v":"2012-13"},{"$f":"IF(dms_RPT=\"financial\",VALUE(LEFT(PRCP_y5,4)-1)&\"-\"&TEXT(VALUE(RIGHT(PRCP_y5,2)-1),\"00\"),VALUE(LEFT(PRCP_y5,4)-1))","v":"2013-14"},{"$f":"IF(dms_RPT=\"financial\",VALUE(LEFT(CRCP_y1,4)-1)&\"-\"&TEXT(VALUE(RIGHT(CRCP_y1,2)-1),\"00\"),VALUE(LEFT(CRCP_y1,4)-1))","v":"2014-15"}]
[]
[]
[]
[null,"Commencing regulatory year","2017-18","CRY"]
[]
[null,"Last completed regulatory year","2017-18","dms_FinalYear"]
[]
[]
[]
[null,null,"IF THIS IS AN ABC RIN - make sure the the named range CRY is applied and the named range dms_dollar_nom_UOM is applied"]
[null,null,"IF THIS IS A RESET RIN - make sure the named ranges CRY and dms_dollar_nom_UOM are NOT present in the workbook"]
[null,null,"FOR ABC RINS THAT SPAN MULTIPLE YEARS - make sure MultiYear Flag is set and final year entered as required"]
[]
[null,"Source","Reporting",null,"Please select the correct submission type from the dropdown list."]
[null,"Data quality (actual, estimate, public, consolidated)","Public",null,"Use Consolidated for Consolidated Confidential version\nUse Public for Consolidated Public version"]
[null,"Amended RIN submission - amendment reason","."]
[null,"Submission Date","2018-10-31","dms_SubmissionDate","Please enter date this file submitted to AER (dd/mm/yyyy)"]
[null,"EBSS - First application of scheme in forthcoming period?","No"]
[null,"Sector",{"$f":"INDEX(dms_Sector_List,MATCH(dms_TradingName,dms_TradingName_List))","v":"Electricity"},"dms_Sector","=INDEX(dms_Sector_List,MATCH(dms_TradingName,dms_TradingName_List))"]
[null,"Segment",{"$f":"INDEX(dms_Segment_List,MATCH(dms_TradingName,dms_TradingName_List))","v":"Distribution"},"dms_Segment","=INDEX(dms_Segment_List,MATCH(dms_TradingName,dms_TradingName_List))"]
[null,"Regulatory Year Ending",{"$f":"IF(dms_MultiYear_Flag=1,LEFT(dms_Specified_FinalYear,2)&RIGHT(dms_Specified_FinalYear,2),INDEX(dms_RYE_Formula_Result,MATCH(dms_Model,dms_Model_List)))","v":"2018"},"dms_RYE","=IF(dms_MultiYear_Flag=1,LEFT(dms_Specified_FinalYear,2)&RIGHT(dms_Specified_FinalYear,2),INDEX(dms_RYE_Formula_Result,MATCH(dms_Model,dms_Model_List)))"]
[null,"Reporting Period Type",{"$f":"INDEX(dms_RPT_List,MATCH(dms_TradingName,dms_TradingName_List))","v":"Financial"},"dms_RPT","=INDEX(dms_RPT_List,MATCH(dms_TradingName,dms_TradingName_List))"]
[null,"Model or RIN Type","EB","dms_Model","Drop down selection"]
[null,"EB/CA Unit of Measure for Monetary Values","$0s","dms_dollar_nom_UOM","If the cover sheet is attached to an ABC RIN make the NAMED RANGE on this field is set"]
[null,"Security Classification","Public","dms_Classification","Always Public"]
[null,"Jurisdiction",{"$f":"INDEX(dms_JurisdictionList,MATCH(dms_TradingName,dms_TradingName_List))","v":"NSW"},"dms_Jurisdiction","=INDEX(dms_JurisdictionList,MATCH(dms_TradingName,dms_TradingName_List))"]
[null,"FOR RESET RINS"]
[null,"CRY-1",{"$f":"VALUE(LEFT(CRY,4)-1)","v":2016},"dms_Left_CRY_minus1","=VALUE(LEFT(CRY,4)-1)",null,"Not used in Reset RINS but may be useful in other cases"]
[null,"Dollar $ real month",{"$f":"INDEX(dms_RPTMonth_List,MATCH(dms_TradingName,dms_TradingName_List))","v":"June"},"dms_RPTMonth","=INDEX(dms_RPTMonth_List,MATCH(dms_TradingName,dms_TradingName_List))"]
[null,"Dollar $ real  (the last month before the FRCP_y1)",{"$f":"IF(SUM(dms_SingleYear_Model)>0,CONCATENATE(dms_RPTMonth)&\" \"&VALUE((LEFT(CRY,2))&RIGHT(CRY,2)),CONCATENATE(dms_RPTMonth)&\" \"&VALUE((LEFT(dms_CRCP_FinalYear_Result,2)&RIGHT(dms_CRCP_FinalYear_Result,2))))","v":"June 2018"},"dms_DollarReal","=IF(SUM(dms_SingleYear_Model)>0,CONCATENATE(dms_RPTMonth)&\" \"&VALUE((LEFT(CRY,2))&RIGHT(CRY,2)),CONCATENATE(dms_RPTMonth)&\" \"&VALUE((LEFT(dms_CRCP_FinalYear_Result,2)&RIGHT(dms_CRCP_FinalYear_Result,2))))"]
[null,"Dollar $ real previous year (PRCP_y5)",{"$f":"IF(SUM(dms_SingleYear_Model)>0,CONCATENATE(dms_RPTMonth)&\" \"&VALUE(((LEFT(CRY,2))&RIGHT(CRY,2))-1),CONCATENATE(dms_RPTMonth)&\" \"&VALUE(((LEFT(dms_CRCP_FirstYear_Result,2)&RIGHT(dms_CRCP_FirstYear_Result,2))))-1)","v":"June 2017"},"dms_DollarReal_Prev","=IF(SUM(dms_SingleYear_Model)>0,CONCATENATE(dms_RPTMonth)&\" \"&VALUE(((LEFT(CRY,2))&RIGHT(CRY,2))-1),CONCATENATE(dms_RPTMonth)&\" \"&VALUE(((LEFT(dms_CRCP_FirstYear_Result,2)&RIGHT(dms_CRCP_FirstYear_Result,2))))-1)"]
[null,"FOR PTRM/ RFMs"]
[null,"Form of control",{"$f":"INDEX(dms_FormControl_List,MATCH(dms_TradingName,dms_TradingName_List))","v":"Revenue cap"},"dms_FormControl","=INDEX(dms_FormControl_List,MATCH(dms_TradingName,dms_TradingName_List))"]
[null,"FOR EB RINS"]
[null,"Calendar Year for table 3.6 data",{"$f":"VALUE(dms_RYE)-1","v":2017},"dms_0306_Year","=VALUE(dms_RYE)-1"]
[null,"FOR ABC RINS THAT SPAN MULTIPLE YEARS"]
[null,"Is this a multi year ABC RIN?","No"]
[null,"Backcast Multiyear EB, CA or ARR?",{"$f":"IF(dms_MultiYear_ResponseFlag=\"No\",0,1)","v":0},"dms_MultiYear_Flag","This is set from the answer provided above"]
[null,null,{"$f":"IF(dms_MultiYear_Flag=1,\"Specify Final Reg Year here eg 2016 or 2015-16\",\"not a Multi Reg Year submission\")","v":"not a Multi Reg Year submission"},"dms_Specified_FinalYear","The result here is returned to dms_CRCP_FinalYear_Result if response to Q in C73 is \"yes\" and dms_MultiYear_Flag is set to 1"]
[null,"This block works out the various RYE's for ALL RIN types and MODELS"]
[null,"Single Year Model T/F",{"$f":"IF(dms_Model=\"EB\",1,0)","v":1},"dms_EB"]
[null,null,{"$f":"IF(dms_Model=\"CA\",1,0)","v":0},"dms_CA","=dms_SingleYear_Model"]
[null,null,{"$f":"IF(dms_Model=\"ARR\",1,0)","v":0},"dms_ARR"]
[null,"Single Year Final Year Reference","CRY","dms_SingleYear_FinalYear_Ref","This is the reference for EB, CA & ARR RINs"]
[null,"Single Year Final Year Result",{"$f":"IFERROR(IF(SUM(dms_SingleYear_Model)<>0,(INDIRECT(dms_SingleYear_FinalYear_Ref)),\"not a single year RIN\"),\"CRY not present\")","v":"2017-18"},"dms_SingleYear_FinalYear_Result","=IFERROR(IF(SUM(dms_SingleYear_Model)<>0,(INDIRECT(dms_SingleYear_FinalYear_Ref)),\"not a single year RIN\"),\"CRY not present\")"]
[null,"FRCP length in years",{"$f":"INDEX(dms_FRCPlength_List,MATCH(dms_TradingName,dms_TradingName_List))","v":5},"dms_FRCPlength_Num","=INDEX(dms_FRCPlength_List,MATCH(dms_TradingName,dms_TradingName_List))"]
[null,"Multi Year Final Year Reference",{"$f":"INDEX(dms_FinalYear_List,MATCH(dms_FRCPlength_Num,dms_FRCPlength_Num_List))","v":"dms_FRCP_y5"},"dms_MultiYear_FinalYear_Ref","=INDEX(dms_FinalYear_List,MATCH(dms_FRCPlength_Num,dms_FRCPlength_Num_List))"]
[null,"Multi Year Final Year Result",{"$f":"IF(dms_MultiYear_Flag=0,INDIRECT(dms_MultiYear_FinalYear_Ref),dms_Specified_FinalYear)","v":"2024-25"},"dms_MultiYear_FinalYear_Result","=IF(dms_MultiYear_Flag=0,INDIRECT(dms_MultiYear_FinalYear_Ref),dms_Specified_FinalYear)",null,null,null,"Formula errors OK"]
[null,"CRCP length in years",{"$f":"INDEX(dms_CRCPlength_List,MATCH(dms_TradingName,dms_TradingName_List))","v":5},"dms_CRCPlength_Num","=INDEX(dms_CRCPlength_List,MATCH(dms_TradingName,dms_TradingName_List))"]
[null,"CRCP Final Year Reference",{"$f":"INDEX(dms_CFinalYear_List,MATCH(dms_CRCPlength_Num,dms_CRCPlength_Num_List))","v":"CRCP_y5"},"dms_CRCP_FinalYear_Ref","=INDEX(dms_CFinalYear_List,MATCH(dms_CRCPlength_Num,dms_CRCPlength_Num_List))"]
[null,"CRCP First Year Result",{"$f":"INDEX(dms_CRCP_years,MATCH(dms_CRCPlength_Num,dms_CRCP_index))","v":"2015-16"},"dms_CRCP_FirstYear_Result","=INDEX(dms_CRCP_years,MATCH(dms_CRCPlength_Num,dms_CRCP_index))"]
[null,"CRCP Final Year Result",{"$f":"IF(dms_MultiYear_Flag=0,(IF(SUM(dms_SingleYear_Model)>0,CRY,dms_CRCP_yZ)),dms_Specified_FinalYear)","v":"2017-18"},"dms_CRCP_FinalYear_Result","=IF(dms_MultiYear_Flag=0,(IF(SUM(dms_SingleYear_Model)>0,CRY,dms_CRCP_yZ)),dms_Specified_FinalYear)"]
[null,"FOR CATEGORY ANALYSIS FILES"]
[null,"How many rows in tables 6.3 sustained interruptions?",{"$f":"IF(dms_Model<>\"CA\",\"not a CA\",\"Is a CA\")","v":"not a CA"},"dms_060301_MaxRows only returns a valid value when cover sheet is attached to a CA file"]
[null,"Table 6.3.1 - last row reference",{"$f":"IFERROR(IF(dms_Model=\"CA\",\nLOOKUP(2,1/(dms_060301_Avg_Duration_Sustained_Int_Values<>\"\"),\n(ROW(dms_060301_Avg_Duration_Sustained_Int_Values))),\n\"not a CA\"),\"no data in 6.3 or 6.3 not present\")","v":"not a CA"},"dms_060301_LastRow","=IFERROR(IF(dms_Model=\"CA\",LOOKUP(2,1/(dms_060301_Avg_Duration_Sustained_Int_Values<>\"\"),(ROW(dms_060301_Avg_Duration_Sustained_Int_Values))),\"not a CA\"),\"6.3 not present\")"]
[null,"Table 6.3.1 - max number rows",{"$f":"IFERROR(IF(dms_Model=\"CA\",(dms_060301_LastRow-15),\"not a CA\"),\"no data in 6.3 or 6.3 not present\")","v":"not a CA"},"dms_060301_MaxRows","=IFERROR(IF(dms_Model=\"CA\",(dms_060301_LastRow-15),\"not a CA\"),\"6.3 not present\")"]
[null,"Table 6.6.3 - Public lighting repair - no. business days",{"$f":"INDEX(dms_663_List,MATCH(dms_TradingName,dms_TradingName_List))","v":5},"dms_663","=INDEX(dms_663_List,MATCH(dms_TradingName,dms_TradingName_List))"]
[null,"FOR ARR or RESET RINS"]
[null,"How many rows in tables 6.1 or 6.7?  (leap year?)","insert dms_LeapYear NR if required","dms_LeapYear is used to determine dms_060701_Max_Rows BUT it is only found on worksheet 6.1 or 6.7 and the date value in the cell is used to determine whether it is a leap year"]
[null,"Is dms_LeapYear named range present?",{"$f":"IFERROR(IF(dms_LeapYear,\"yes\"),\"no\")","v":"no"}]
[null,"Table 6.7.1 - includes a leap year?",{"$f":"\nIFERROR(IF(MONTH(DATE(YEAR(dms_LeapYear),2,29))=2,\"is a leap year\",\"not a leap year\"),\n\"dms_LeapYear not present\")","v":"dms_LeapYear not present"},"dms_LeapYear_Result","=IFERROR(IF(MONTH(DATE(YEAR(dms_LeapYear),2,29))=2,\"is a leap year\",\"not a leap year\"),\"dms_LeapYear not present\")"]
[null,"Table 6.7.1 - Last row  (leap year/ non leap year)",{"$f":"\nIFERROR(IF(dms_Model=\"ARR\",\nIF(dms_LeapYear_Result=\"is a leap year\",366,365),\n(IF(dms_Model=\"Reset\",\n(IF(dms_LeapYear_Result=\"is a leap year\",1827,1826)),\n\"not a relevant RIN type\"))),\n\"dms_LeapYear in either 6.1 or 6.7 not present\")","v":"not a relevant RIN type"},"dms_060701_MaxRows","=IFERROR(IF(dms_Model=\"ARR\",IF(dms_LeapYear_Result=\"is a leap year\",366,365),(IF(dms_Model=\"Reset\",(IF(dms_LeapYear_Result=\"is a leap year\",1827,1826)),\"not a relevant RIN type\"))),\"dms_LeapYear in either 6.1 or 6.7 not present\")"]
[null,"How many columns in 6.7?   (4 or 5 feeder categories)",{"$f":"IF(dms_FifthFeeder_flag_NSP=\"NO\",\"This NSP has only 4 feeder categories\",\"This NSP has 5 feeder categories\")","v":"This NSP has only 4 feeder categories"}]
[null,"Table 6.7.1 - Last column (# of feeder categories > 4)",{"$f":"IF(dms_FifthFeeder_flag_NSP=\"NO\",10,12)","v":10},"dms_060701_MaxCols","=IF(dms_FifthFeeder_flag_NSP=\"NO\",8,10)"]
[null,"Table 6.7.1 - Number of offset rows",{"$f":"IF(dms_Model=\"ARR\",15,9)","v":9},"dms_060701_OffsetRows","=IF(dms_Model=\"ARR\",15,9)"]
[null,"Start date for telephone answering in 6.1 or 6.7?",null,null,"Using 060701 as naming standard not 060101 "]
[null,"Table 6.1.1 and 6.7.1 - Start Date as Text",{"$f":"IF(SUM(dms_SingleYear_Model)>0,(CONCATENATE(IF(LEN(CRY)=4,\"1-Jan-\",\"1-Jul-\"),LEFT(CRY,4))),(CONCATENATE(IF(LEN(CRCP_y4)=4,\"1-Jan-\",\"1-Jul-\"),LEFT(CRCP_y4,4))))","v":"1-Jul-2017"},"dms_060701_StartDateTxt","=IF(SUM(dms_SingleYear_Model)>1,(CONCATENATE(IF(LEN(CRY)=4,\"1-Jan-\",\"1-Jul-\"),LEFT(CRY,4))),(CONCATENATE(IF(LEN(CRCP_y4)=4,\"1-Jan-\",\"1-Jul-\"),LEFT(CRCP_y4,4))))"]
[null,"Table 6.1.1 and 6.7.1 - Start Date as Date Value",{"$f":"DATEVALUE(dms_060701_StartDateTxt)","v":42917},"dms_060701_StartDateVal","=DATEVALUE(dms_060701_StartDateTxt)"]
[null,"FOR ARRs"]
[null,"How many rows in table 6.8?","insert dms_060801_StartCell NR if required","dms_060801_StartCell is only found on worksheet 6.8 and is used to determine the starting date for the date range"]
[null,"Table 6.8 - Number of offset rows",{"$f":"IFERROR(IF(dms_Model=\"ARR\",(ROW(dms_060801_StartCell)-1),\"not an ARR\"),\"6.8 not present\")","v":"not an ARR"},"dms_0608_OffsetRows","=IFERROR(IF(dms_Model=\"ARR\",(ROW(dms_060801_StartCell)-1),\"not an ARR\"),\"6.8 not present\")"]
[null,"Table 6.8 - Last row",{"$f":"IFERROR(IF(dms_060801_StartCell<>\"\",IF(dms_Model=\"ARR\",(LOOKUP(2,1/(dms_060801_01_Values<>\"\"),(ROW(dms_060801_01_Values)))),\"not an ARR\"),0),\"6.8 not present\")","v":"6.8 not present"},"dms_0608_LastRow","=IFERROR(IF(dms_060801_StartCell<>\"\",IF(dms_Model=\"ARR\",(LOOKUP(2,1/(dms_060801_01_Values<>\"\"),(ROW(dms_060801_01_Values)))),\"not an ARR\"),0),\"6.8 not present\")"]
[null,"Table 6.8 - MaxRows",{"$f":"IFERROR(IF(dms_Model=\"ARR\",(MAX(0,dms_0608_LastRow-dms_0608_OffsetRows)),\"not an ARR\"),\"6.8 not present\")","v":"not an ARR"},"dms_060801_MaxRows","=IFERROR(IF(dms_Model=\"ARR\",(MAX(0,dms_0608_LastRow-dms_0608_OffsetRows)),\"not an ARR\"),\"6.8 not present\")"]
[null,"FOR TNSP RESET RINS"]
[null,"Table 7.9.4 only appears in TNSPs Reset RIN"]
[null,"Table 7.9.4 - first year",{"$f":"LEFT(PRCP_y3,4)","v":"2012"},"dms_070904_Start_Year","=LEFT(PRCP_y3,4)"]
[null,"FOR SUBSET FILES"]
[null,"Is this Submission File a Subset File","NO","dms_Partial"]
[null,"MISC"]
[null,"Distribution Determination Reference",{"$f":"INDEX(dms_DeterminationRef_List,MATCH(dms_TradingName,dms_TradingName_List))","v":"2014-19 Distribution Determination"},"dms_DeterminationRef"]
[null,"CBD Feeder for this business",{"$f":"INDEX(dms_CBD_flag,MATCH(dms_TradingName,dms_TradingName_List))","v":"NO"},"dms_CBD_flag_NSP"]
[null,"Urban Feeder for this business",{"$f":"INDEX(dms_Urban_flag,MATCH(dms_TradingName,dms_TradingName_List))","v":"YES"},"dms_Urban_flag_NSP"]
[null,"Short rural Feeder for this business",{"$f":"INDEX(dms_ShortRural_flag,MATCH(dms_TradingName,dms_TradingName_List))","v":"YES"},"dms_ShortRural_flag_NSP"]
[null,"Long rural Feeder for this business",{"$f":"INDEX(dms_LongRural_flag,MATCH(dms_TradingName,dms_TradingName_List))","v":"YES"},"dms_LongRural_flag_NSP"]
[null,"Fifth Feeder Category (eg. TasNetworks (D))",{"$f":"INDEX(dms_FeederType_5_flag,MATCH(dms_TradingName,dms_TradingName_List))","v":"NO"},"dms_FifthFeeder_flag_NSP","=INDEX(dms_FeederType_5_flag,MATCH(dms_TradingName,dms_TradingName_List))"]
[]
[null,"DISCARD FILES"]
[null,"discard this record?","NO","dms_DISCARD","If record is to be discarded from DB set this flag to YES"]
[]
[null,"USES NAMED RANGES FLAG","yes","dms_Defined_Names_Used"]
[]
[null,"REGULATORY YEARS FOR MULTI RYE SUBMISSIONS"]
[null,"Multiple RYE flag","NO","dms_Multi_RYE_flag"]
[null,null,"Manually specify RYE","Named ranges to apply"]
[null,null,2013,"dms_RYE_01"]
[null,null,2014,"dms_RYE_02"]
[null,null,2015,"dms_RYE_03"]
[null,null,2016,"dms_RYE_04"]
[null,null,2017,"dms_RYE_05"]

{"sheet":"3.1 Revenue","index":4,"n_rows":49,"n_cols":4,"rows_kept":49,"cut":false,"hidden":false,"merged":[[9,2,9,3],[29,2,29,3],[41,2,41,3]]}
[null,"REGULATORY REPORTING STATEMENT"]
[null,{"$f":"dms_TradingName","v":"Endeavour Energy"}]
[null,{"$f":"CONCATENATE(\"Benchmarking RIN response \",CRY)","v":"Benchmarking RIN response 2017-18"}]
[null,"3.1 REVENUE"]
[]
[null,"There are THREE tables on this worksheet. Each table has been grouped for ease of navigation. See the Instructions sheet on how to group or ungroup tables. "]
[]
[null,"3.1.1 - REVENUE GROUPING BY CHARGEABLE QUANTITY"]
[null,null,"Standard control services","Alternative control services"]
[null,null,"REVENUE\n($0's)"]
[null,null,{"$f":"CRY","v":"2017-18"},{"$f":"CRY","v":"2017-18"}]
["DREV0101","Revenue from Fixed Customer Charges ",176912797.42909998,0]
["DREV0102","Revenue from Energy Delivery charges where time of use is not a determinant",469440328.944067,0]
["DREV0103","Revenue from On–Peak Energy Delivery charges ",28643332.421159409,0]
["DREV0104","Revenue from Shoulder period Energy Delivery Charges",14676912.734682962,0]
["DREV0105","Revenue from Off–Peak Energy Delivery charges ",6507232.3387310533,0]
["DREV0106","Revenue from controlled load customer charges",5102125.7694967398,0]
["DREV0107","Revenue from unmetered supplies",8947008.9678816423,0]
["DREV0108","Revenue from Contracted Maximum Demand charges",0,0]
["DREV0109","Revenue from Measured Maximum Demand charges",131044168.44969198,0]
["DREV0110","Revenue from metering charges",0,17381720.699999999]
["DREV0111","Revenue from connection charges",0,0]
["DREV0112","Revenue from public lighting charges",0,22790358.329999998]
["DREV0113","Revenue from other Sources",0,35278508.669999972]
["DREV01","Total revenue by chargeable quantity",{"$f":"SUM(C12:C24)","v":841273907.05481088},{"$f":"SUM(D12:D24)","v":75450587.699999973}]
[]
[]
[null,"3.1.2 - REVENUE GROUPING BY CUSTOMER TYPE OR CLASS"]
[null,null,"Standard control services","Alternative control services"]
[null,null,"REVENUE\n($0's)"]
[null,null,{"$f":"CRY","v":"2017-18"},{"$f":"CRY","v":"2017-18"}]
["DREV0201","Revenue from residential Customers ",480137842.65976137,0]
["DREV0202","Revenue from Non residential customers not on demand tariffs ",137433784.52028576,0]
["DREV0203","Revenue from Non-residential low voltage demand tariff customers ",152069733.43429902,0]
["DREV0204","Revenue from Non-residential high voltage demand tariff customers ",62685537.472583048,0]
["DREV0205","Revenue from unmetered supplies",8947008.9678816423,0]
["DREV0206","Revenue from Other Customers",0,75450587.699999973]
["DREV02","Total revenue by customer class",{"$f":"SUM(C32:C37)","v":841273907.05481088},{"$f":"SUM(D32:D37)","v":75450587.699999973}]
[]
[null,"3.1.3 - REVENUE (penalties) ALLOWED (deducted) THROUGH INCENTIVE SCHEMES"]
[null,null,"Standard control services","Alternative control services"]
[null,null,"REVENUE\n($0's)"]
[null,null,{"$f":"CRY","v":"2017-18"},{"$f":"CRY","v":"2017-18"}]
["DREV0301","EBSS",-24591637.312350001,0]
["DREV0302","STPIS",0,0]
["DREV0303","F-Factor ",0,0]
["DREV0304","S-Factor True up",0,0]
["DREV0305","Other",0,0]
["DREV03","Total revenue of incentive schemes",{"$f":"SUM(C44:C48)","v":-24591637.312350001},{"$f":"SUM(D44:D48)","v":0}]

{"sheet":"3.2 Operating expenditure","index":5,"n_rows":79,"n_cols":4,"rows_kept":79,"cut":false,"hidden":false,"merged":[[14,2,14,3],[65,2,65,3]]}
[null,"REGULATORY REPORTING STATEMENT"]
[null,{"$f":"dms_TradingName","v":"Endeavour Energy"}]
[null,{"$f":"CONCATENATE(\"Benchmarking RIN response \",CRY)","v":"Benchmarking RIN response 2017-18"}]
[null,"3.2 OPERATING EXPENDITURE"]
[]
[null,"There are THREE tables on this worksheet. Each table has been grouped for ease of navigation. See the Instructions sheet on how to group or ungroup tables. "]
[]
[null,"Instructions"]
[null,{"$f":"CONCATENATE(\"In table 3.2.1, please list each opex category reported in response to \",dms_TradingName, \"'s annual reporting RIN and report opex for each category.\")","v":"In table 3.2.1, please list each opex category reported in response to Endeavour Energy's annual reporting RIN and report opex for each category."}]
[]
[]
[null,"3.2.1 - OPEX CATEGORIES"]
[null,"CURRENT OPEX CATEGORIES AND COST ALLOCATIONS"]
[null,null,"Standard control services","Alternative control services"]
[null,null,"EXPENDITURE\n($0's)"]
[null,null,{"$f":"CRY","v":"2017-18"},{"$f":"CRY","v":"2017-18"}]
["DOPEX0101","Vegetation management",41759744.899999999,0]
["DOPEX0102","Maintenance",49215839.711462803,0]
["DOPEX0103","Emergency response",15801119.45431662,0]
["DOPEX0104","Non-network",62240370.443542391,0]
["DOPEX0105","network overheads",57147989.888940722,0]
["DOPEX0106","corporate overheads",93398204.229660228,0]
["DOPEX0107","Balancing Item",-62240370.443542391,0]
["DOPEX0108","Metering",0,17572224.324244399]
["DOPEX0109","Public Lighting",0,14335117.779750273]
["DOPEX0110","Ancillary network services",0,31200995.466598831]
["DOPEX0111"]
["DOPEX0112"]
["DOPEX0113"]
["DOPEX0114"]
["DOPEX0115"]
["DOPEX0116"]
["DOPEX0117"]
["DOPEX0118"]
["DOPEX0119"]
["DOPEX0120"]
["DOPEX0121"]
["DOPEX0122"]
["DOPEX0123"]
["DOPEX0124"]
["DOPEX0125"]
["DOPEX0126"]
["DOPEX0127"]
["DOPEX0128"]
["DOPEX0129"]
["DOPEX0130"]
["DOPEX0131"]
["DOPEX0132"]
["DOPEX0133"]
["DOPEX0134"]
["DOPEX0135"]
["DOPEX0136"]
["DOPEX0137"]
["DOPEX0138"]
["DOPEX0139"]
["DOPEX0140"]
["DOPEX0141"]
["DOPEX0142"]
["DOPEX01","Total opex ",{"$f":"SUM(C17:C58)","v":257322898.18438038},{"$f":"SUM(D17:D58)","v":63108337.570593506}]
[]
[]
[]
[null,"3.2.2 - OPEX CONSISTENCY"]
[null,"CURRENT COST ALLOCATION APPROACH"]
[null,null,"Standard control services","Alternative control services"]
[null,null,"EXPENDITURE\n($0's)"]
[null,null,{"$f":"CRY","v":"2017-18"},{"$f":"CRY","v":"2017-18"}]
["DOPEX0201","Opex for network services",257322898.18438038,0]
["DOPEX0202","Opex for metering",0,17572224.324244399]
["DOPEX0203","Opex for connection services",0,31200995.466598831]
["DOPEX0204","Opex for public lighting",0,14335117.779750273]
["DOPEX0205","Opex for amounts payable for easement levy or similar direct charges on DNSP",0,0]
["DOPEX0206","Opex for transmission connection point planning",0,0]
[]
[]
[]
[null,"3.2.4 - OPEX FOR HIGH VOLTAGE CUSTOMERS"]
[null,null,"End user costs (not standard control services)"]
["DOPEX0401","Opex for high voltage customers",257.12979300000001]

{"sheet":"3.2.3 Provisions","index":6,"n_rows":373,"n_cols":3,"rows_kept":373,"cut":false,"hidden":false,"merged":[]}
[null,"REGULATORY REPORTING STATEMENT"]
[null,{"$f":"dms_TradingName","v":"Endeavour Energy"}]
[null,{"$f":"CONCATENATE(\"Benchmarking RIN response \",CRY)","v":"Benchmarking RIN response 2017-18"}]
[null,"3.2 OPERATING EXPENDITURE"]
[]
[null,"The is ONE table on this worksheet. Each Provision has been grouped for ease of navigation. See the Instructions sheet on how to group and ungroup tables."]
[]
[null,"Instructions"]
[null,{"$f":"CONCATENATE(\"In table 3.2.3, please list each opex category reported in response to \",dms_TradingName, \"'s annual reporting RIN and report opex for each category.\")","v":"In table 3.2.3, please list each opex category reported in response to Endeavour Energy's annual reporting RIN and report opex for each category."}]
[]
[null,"3.2.3 - PROVISIONS"]
[null,null,"VALUE \n($0's)"]
[null,null,{"$f":"CRY","v":"2017-18"}]
["DOPEX03A","Employee Entitlements"]
[null,"Provisions are required to comply with Accounting Standards.  A provision is recognised if, as a result of a past event, the Corporation has a present legal or constructive obligation that can be estimated reliably, and it is probable that an outflow of economic benefits will be required to settle the obligation.  The Employee Benefits provision relates to amounts accruing to employees up to reporting date in respect of employee benefits including annual leave, maturing allowance, pre 93 sick leave and long service leave.  Amounts provided for in relation to maturing allowance, pre 93 sick leave and long service leave have been based on an actuarial assessment and associated formulae provided for intervening periods between assessments.  All other employee benefit amounts have been calculated at nominal amounts based on expected settlement rates."]
["DOPEX0301A","Opening balance (the carrying amount at the beginning of the period)",135777615.4728964]
[null,"Additional provisions made in the period, including increases to existing provisions"]
["DOPEX0302A","Opex component",11201835.78661132]
["DOPEX0303A","Capex component",4971230.4775981978]
["DOPEX0304A","Other component",0]
[null,"Amounts used (that is, incurred and charged against the provision) during the period"]
["DOPEX0305A","Opex component",-12361585.843918076]
["DOPEX0306A","Capex component",-9549765.0829786677]
["DOPEX0307A","Other component",0]
[null,"Unused amounts reversed during the period"]
["DOPEX0308A","Opex component",1003497.4280678876]
["DOPEX0309A","Capex component",851897.69402183895]
["DOPEX0310A","Other component",0]
[null,"The increase during the period in the discounted amount arising from the passage of time and the effect of any change in the discount rate"]
["DOPEX0311A","Opex component",-1178359.3538226632]
["DOPEX0312A","Capex component",-1000342.9886047302]
["DOPEX0313A","Other component",0]
["DOPEX0314A","Closing balance (carrying amount at the end of the period)",129716023.5898715]
["DOPEX03B","Self Insurance (WC)"]
[null,"Provisions are required to comply with Accounting Standards.  A provision is recognised if, as a result of a past event, the Corporation has a present legal or constructive obligation that can be estimated reliably, and it is probable that an outflow of economic benefits will be required to settle the obligation.  The Self Insurance provision relates to workers compensation and has been based on actuarial assessment outcomes."]
["DOPEX0301B","Opening balance (the carrying amount at the beginning of the period)",16340888.379312819]
[null,"Additional provisions made in the period, including increases to existing provisions"]
["DOPEX0302B","Opex component",468881.19699865871]
["DOPEX0303B","Capex component",398046.67089424224]
["DOPEX0304B","Other component",0]
[null,"Amounts used (that is, incurred and charged against the provision) during the period"]
["DOPEX0305B","Opex component",-712245.32800468209]
["DOPEX0306B","Capex component",-604645.44854216522]
["DOPEX0307B","Other component",0]
[null,"Unused amounts reversed during the period"]
["DOPEX0308B","Opex component",-570926.31615798618]
["DOPEX0309B","Capex component",-484675.69381599687]
["DOPEX0310B","Other component",0]
[null,"The increase during the period in the discounted amount arising from the passage of time and the effect of any change in the discount rate"]
["DOPEX0311B","Opex component",0]
["DOPEX0312B","Capex component",0]
["DOPEX0313B","Other component",0]
["DOPEX0314B","Closing balance (carrying amount at the end of the period)",14835323.46068489]
["DOPEX03C","Defined Benefits Superannuation"]
[null,"Provisions are required to comply with Accounting Standards.  A provision is recognised if, as a result of a past event, the Corporation has a present legal or constructive obligation that can be estimated reliably, and it is probable that an outflow of economic benefits will be required to settle the obligation.  The Defined Benefits Superannuation liability provision has been based on an EISS actuarial assessment."]
["DOPEX0301C","Opening balance (the carrying amount at the beginning of the period)",12227247.193339152]
[null,"Additional provisions made in the period, including increases to existing provisions"]
["DOPEX0302C","Opex component",0]
["DOPEX0303C","Capex component",0]
["DOPEX0304C","Other component",0]
[null,"Amounts used (that is, incurred and charged against the provision) during the period"]
["DOPEX0305C","Opex component",0]
["DOPEX0306C","Capex component",0]
["DOPEX0307C","Other component",0]
[null,"Unused amounts reversed during the period"]
["DOPEX0308C","Opex component",-150438.25987181821]
["DOPEX0309C","Capex component",-127711.34543335378]
["DOPEX0310C","Other component",0]
[null,"The increase during the period in the discounted amount arising from the passage of time and the effect of any change in the discount rate"]
["DOPEX0311C","Opex component",0]
["DOPEX0312C","Capex component",0]
["DOPEX0313C","Other component",-2158880.2890142528]
["DOPEX0314C","Closing balance (carrying amount at the end of the period)",9790217.2990197279]
["DOPEX03D","Other"]
[null,"Provisions are required to comply with Accounting Standards.  A provision is recognised if, as a result of a past event, the Corporation has a present legal or constructive obligation that can be estimated reliably, and it is probable that an outflow of economic benefits will be required to settle the obligation.  Other Provisions have not been detailed due to commercial and legal sensitivity."]
["DOPEX0301D","Opening balance (the carrying amount at the beginning of the period)",12734387.806335527]
[null,"Additional provisions made in the period, including increases to existing provisions"]
["DOPEX0302D","Opex component",4051220.0273407632]
["DOPEX0303D","Capex component",3439196.6563497847]
["DOPEX0304D","Other component",0]
[null,"Amounts used (that is, incurred and charged against the provision) during the period"]
["DOPEX0305D","Opex component",-4196599.5577984359]
["DOPEX0306D","Capex component",-2307190.963688253]
["DOPEX0307D","Other component",-699273.4226023301]
[null,"Unused amounts reversed during the period"]
["DOPEX0308D","Opex component",0]
["DOPEX0309D","Capex component",-3775164.0411631539]
["DOPEX0310D","Other component",0]
[null,"The increase during the period in the discounted amount arising from the passage of time and the effect of any change in the discount rate"]
["DOPEX0311D","Opex component",0]
["DOPEX0312D","Capex component",0]
["DOPEX0313D","Other component",0]
["DOPEX0314D","Closing balance (carrying amount at the end of the period)",9246576.5047739036]
["DOPEX03E","Dividend"]
[null,"Provisions are required to comply with Accounting Standards.  A provision is recognised if, as a result of a past event, the Corporation has a present legal or constructive obligation that can be estimated reliably, and it is probable that an outflow of economic benefits will be required to settle the obligation.  The Provision for Dividend represents amounts determined by the Directors and approved by the Shareholding Ministers, in accordance with the requirements of NSW Treasury Policy TPP 14-4 Financial Distribution Policy for Government Businesses.  The NSW Treasury Policy is no longer relevant after ompletion on 13 June 2017 and no provision for distribution has been raised  as at 30 June 2017."]
["DOPEX0301E","Opening balance (the carrying amount at the beginning of the period)",0]
[null,"Additional provisions made in the period, including increases to existing provisions"]
["DOPEX0302E","Opex component",0]
["DOPEX0303E","Capex component",0]
["DOPEX0304E","Other component",0]
[null,"Amounts used (that is, incurred and charged against the provision) during the period"]
["DOPEX0305E","Opex component",0]
["DOPEX0306E","Capex component",0]
["DOPEX0307E","Other component",0]
[null,"Unused amounts reversed during the period"]
["DOPEX0308E","Opex component",0]
["DOPEX0309E","Capex component",0]
["DOPEX0310E","Other component",0]
[null,"The increase during the period in the discounted amount arising from the passage of time and the effect of any change in the discount rate"]
["DOPEX0311E","Opex component",0]
["DOPEX0312E","Capex component",0]
["DOPEX0313E","Other component",0]
["DOPEX0314E","Closing balance (carrying amount at the end of the period)",0]
["DOPEX03F","<Provision name>"]
[null,"<Brief description of provision>"]
["DOPEX0301F","Opening balance (the carrying amount at the beginning of the period)"]
[null,"Additional provisions made in the period, including increases to existing provisions"]
["DOPEX0302F","Opex component"]
["DOPEX0303F","Capex component"]
["DOPEX0304F","Other component"]
[null,"Amounts used (that is, incurred and charged against the provision) during the period"]
["DOPEX0305F","Opex component"]
["DOPEX0306F","Capex component"]
["DOPEX0307F","Other component"]
[null,"Unused amounts reversed during the period"]
["DOPEX0308F","Opex component"]
["DOPEX0309F","Capex component"]
["DOPEX0310F","Other component"]
[null,"The increase during the period in the discounted amount arising from the passage of time and the effect of any change in the discount rate"]
["DOPEX0311F","Opex component"]
["DOPEX0312F","Capex component"]
["DOPEX0313F","Other component"]
["DOPEX0314F","Closing balance (carrying amount at the end of the period)"]
["DOPEX03G","<Provision name>"]
[null,"<Brief description of provision>"]
["DOPEX0301G","Opening balance (the carrying amount at the beginning of the period)"]
[null,"Additional provisions made in the period, including increases to existing provisions"]
["DOPEX0302G","Opex component"]
["DOPEX0303G","Capex component"]
["DOPEX0304G","Other component"]
[null,"Amounts used (that is, incurred and charged against the provision) during the period"]
["DOPEX0305G","Opex component"]
["DOPEX0306G","Capex component"]
["DOPEX0307G","Other component"]
[null,"Unused amounts reversed during the period"]
["DOPEX0308G","Opex component"]
["DOPEX0309G","Capex component"]
["DOPEX0310G","Other component"]
[null,"The increase during the period in the discounted amount arising from the passage of time and the effect of any change in the discount rate"]
["DOPEX0311G","Opex component"]
["DOPEX0312G","Capex component"]
["DOPEX0313G","Other component"]
["DOPEX0314G","Closing balance (carrying amount at the end of the period)"]
["DOPEX03H","<Provision name>"]
[null,"<Brief description of provision>"]
["DOPEX0301H","Opening balance (the carrying amount at the beginning of the period)"]
[null,"Additional provisions made in the period, including increases to existing provisions"]
["DOPEX0302H","Opex component"]
["DOPEX0303H","Capex component"]
["DOPEX0304H","Other component"]
[null,"Amounts used (that is, incurred and charged against the provision) during the period"]
["DOPEX0305H","Opex component"]
["DOPEX0306H","Capex component"]
["DOPEX0307H","Other component"]
[null,"Unused amounts reversed during the period"]
["DOPEX0308H","Opex component"]
["DOPEX0309H","Capex component"]
["DOPEX0310H","Other component"]
[null,"The increase during the period in the discounted amount arising from the passage of time and the effect of any change in the discount rate"]
["DOPEX0311H","Opex component"]
["DOPEX0312H","Capex component"]
["DOPEX0313H","Other component"]
["DOPEX0314H","Closing balance (carrying amount at the end of the period)"]
["DOPEX03I","<Provision name>"]
[null,"<Brief description of provision>"]
["DOPEX0301I","Opening balance (the carrying amount at the beginning of the period)"]
[null,"Additional provisions made in the period, including increases to existing provisions"]
["DOPEX0302I","Opex component"]
["DOPEX0303I","Capex component"]
["DOPEX0304I","Other component"]
[null,"Amounts used (that is, incurred and charged against the provision) during the period"]
["DOPEX0305I","Opex component"]
["DOPEX0306I","Capex component"]
["DOPEX0307I","Other component"]
[null,"Unused amounts reversed during the period"]
["DOPEX0308I","Opex component"]
["DOPEX0309I","Capex component"]
["DOPEX0310I","Other component"]
[null,"The increase during the period in the discounted amount arising from the passage of time and the effect of any change in the discount rate"]
["DOPEX0311I","Opex component"]
["DOPEX0312I","Capex component"]
["DOPEX0313I","Other component"]
["DOPEX0314I","Closing balance (carrying amount at the end of the period)"]
["DOPEX03J","<Provision name>"]
[null,"<Brief description of provision>"]
["DOPEX0301J","Opening balance (the carrying amount at the beginning of the period)"]
[null,"Additional provisions made in the period, including increases to existing provisions"]
["DOPEX0302J","Opex component"]
["DOPEX0303J","Capex component"]
["DOPEX0304J","Other component"]
[null,"Amounts used (that is, incurred and charged against the provision) during the period"]
["DOPEX0305J","Opex component"]
["DOPEX0306J","Capex component"]
["DOPEX0307J","Other component"]
[null,"Unused amounts reversed during the period"]
["DOPEX0308J","Opex component"]
["DOPEX0309J","Capex component"]
["DOPEX0310J","Other component"]
[null,"The increase during the period in the discounted amount arising from the passage of time and the effect of any change in the discount rate"]
["DOPEX0311J","Opex component"]
["DOPEX0312J","Capex component"]
["DOPEX0313J","Other component"]
["DOPEX0314J","Closing balance (carrying amount at the end of the period)"]
["DOPEX03K","<Provision name>"]
[null,"<Brief description of provision>"]
["DOPEX0301K","Opening balance (the carrying amount at the beginning of the period)"]
[null,"Additional provisions made in the period, including increases to existing provisions"]
["DOPEX0302K","Opex component"]
["DOPEX0303K","Capex component"]
["DOPEX0304K","Other component"]
[null,"Amounts used (that is, incurred and charged against the provision) during the period"]
["DOPEX0305K","Opex component"]
["DOPEX0306K","Capex component"]
["DOPEX0307K","Other component"]
[null,"Unused amounts reversed during the period"]
["DOPEX0308K","Opex component"]
["DOPEX0309K","Capex component"]
["DOPEX0310K","Other component"]
[null,"The increase during the period in the discounted amount arising from the passage of time and the effect of any change in the discount rate"]
["DOPEX0311K","Opex component"]
["DOPEX0312K","Capex component"]
["DOPEX0313K","Other component"]
["DOPEX0314K","Closing balance (carrying amount at the end of the period)"]
["DOPEX03L","<Provision name>"]
[null,"<Brief description of provision>"]
["DOPEX0301L","Opening balance (the carrying amount at the beginning of the period)"]
[null,"Additional provisions made in the period, including increases to existing provisions"]
["DOPEX0302L","Opex component"]
["DOPEX0303L","Capex component"]
["DOPEX0304L","Other component"]
[null,"Amounts used (that is, incurred and charged against the provision) during the period"]
["DOPEX0305L","Opex component"]
["DOPEX0306L","Capex component"]
["DOPEX0307L","Other component"]
[null,"Unused amounts reversed during the period"]
["DOPEX0308L","Opex component"]
["DOPEX0309L","Capex component"]
["DOPEX0310L","Other component"]
[null,"The increase during the period in the discounted amount arising from the passage of time and the effect of any change in the discount rate"]
["DOPEX0311L","Opex component"]
["DOPEX0312L","Capex component"]
["DOPEX0313L","Other component"]
["DOPEX0314L","Closing balance (carrying amount at the end of the period)"]
["DOPEX03M","<Provision name>"]
[null,"<Brief description of provision>"]
["DOPEX0301M","Opening balance (the carrying amount at the beginning of the period)"]
[null,"Additional provisions made in the period, including increases to existing provisions"]
["DOPEX0302M","Opex component"]
["DOPEX0303M","Capex component"]
["DOPEX0304M","Other component"]
[null,"Amounts used (that is, incurred and charged against the provision) during the period"]
["DOPEX0305M","Opex component"]
["DOPEX0306M","Capex component"]
["DOPEX0307M","Other component"]
[null,"Unused amounts reversed during the period"]
["DOPEX0308M","Opex component"]
["DOPEX0309M","Capex component"]
["DOPEX0310M","Other component"]
[null,"The increase during the period in the discounted amount arising from the passage of time and the effect of any change in the discount rate"]
["DOPEX0311M","Opex component"]
["DOPEX0312M","Capex component"]
["DOPEX0313M","Other component"]
["DOPEX0314M","Closing balance (carrying amount at the end of the period)"]
["DOPEX03N","<Provision name>"]
[null,"<Brief description of provision>"]
["DOPEX0301N","Opening balance (the carrying amount at the beginning of the period)"]
[null,"Additional provisions made in the period, including increases to existing provisions"]
["DOPEX0302N","Opex component"]
["DOPEX0303N","Capex component"]
["DOPEX0304N","Other component"]
[null,"Amounts used (that is, incurred and charged against the provision) during the period"]
["DOPEX0305N","Opex component"]
["DOPEX0306N","Capex component"]
["DOPEX0307N","Other component"]
[null,"Unused amounts reversed during the period"]
["DOPEX0308N","Opex component"]
["DOPEX0309N","Capex component"]
["DOPEX0310N","Other component"]
[null,"The increase during the period in the discounted amount arising from the passage of time and the effect of any change in the discount rate"]
["DOPEX0311N","Opex component"]
["DOPEX0312N","Capex component"]
["DOPEX0313N","Other component"]
["DOPEX0314N","Closing balance (carrying amount at the end of the period)"]
["DOPEX03O","<Provision name>"]
[null,"<Brief description of provision>"]
["DOPEX0301O","Opening balance (the carrying amount at the beginning of the period)"]
[null,"Additional provisions made in the period, including increases to existing provisions"]
["DOPEX0302O","Opex component"]
["DOPEX0303O","Capex component"]
["DOPEX0304O","Other component"]
[null,"Amounts used (that is, incurred and charged against the provision) during the period"]
["DOPEX0305O","Opex component"]
["DOPEX0306O","Capex component"]
["DOPEX0307O","Other component"]
[null,"Unused amounts reversed during the period"]
["DOPEX0308O","Opex component"]
["DOPEX0309O","Capex component"]
["DOPEX0310O","Other component"]
[null,"The increase during the period in the discounted amount arising from the passage of time and the effect of any change in the discount rate"]
["DOPEX0311O","Opex component"]
["DOPEX0312O","Capex component"]
["DOPEX0313O","Other component"]
["DOPEX0314O","Closing balance (carrying amount at the end of the period)"]
["DOPEX03P","<Provision name>"]
[null,"<Brief description of provision>"]
["DOPEX0301P","Opening balance (the carrying amount at the beginning of the period)"]
[null,"Additional provisions made in the period, including increases to existing provisions"]
["DOPEX0302P","Opex component"]
["DOPEX0303P","Capex component"]
["DOPEX0304P","Other component"]
[null,"Amounts used (that is, incurred and charged against the provision) during the period"]
["DOPEX0305P","Opex component"]
["DOPEX0306P","Capex component"]
["DOPEX0307P","Other component"]
[null,"Unused amounts reversed during the period"]
["DOPEX0308P","Opex component"]
["DOPEX0309P","Capex component"]
["DOPEX0310P","Other component"]
[null,"The increase during the period in the discounted amount arising from the passage of time and the effect of any change in the discount rate"]
["DOPEX0311P","Opex component"]
["DOPEX0312P","Capex component"]
["DOPEX0313P","Other component"]
["DOPEX0314P","Closing balance (carrying amount at the end of the period)"]
["DOPEX03Q","<Provision name>"]
[null,"<Brief description of provision>"]
["DOPEX0301Q","Opening balance (the carrying amount at the beginning of the period)"]
[null,"Additional provisions made in the period, including increases to existing provisions"]
["DOPEX0302Q","Opex component"]
["DOPEX0303Q","Capex component"]
["DOPEX0304Q","Other component"]
[null,"Amounts used (that is, incurred and charged against the provision) during the period"]
["DOPEX0305Q","Opex component"]
["DOPEX0306Q","Capex component"]
["DOPEX0307Q","Other component"]
[null,"Unused amounts reversed during the period"]
["DOPEX0308Q","Opex component"]
["DOPEX0309Q","Capex component"]
["DOPEX0310Q","Other component"]
[null,"The increase during the period in the discounted amount arising from the passage of time and the effect of any change in the discount rate"]
["DOPEX0311Q","Opex component"]
["DOPEX0312Q","Capex component"]
["DOPEX0313Q","Other component"]
["DOPEX0314Q","Closing balance (carrying amount at the end of the period)"]
["DOPEX03R","<Provision name>"]
[null,"<Brief description of provision>"]
["DOPEX0301R","Opening balance (the carrying amount at the beginning of the period)"]
[null,"Additional provisions made in the period, including increases to existing provisions"]
["DOPEX0302R","Opex component"]
["DOPEX0303R","Capex component"]
["DOPEX0304R","Other component"]
[null,"Amounts used (that is, incurred and charged against the provision) during the period"]
["DOPEX0305R","Opex component"]
["DOPEX0306R","Capex component"]
["DOPEX0307R","Other component"]
[null,"Unused amounts reversed during the period"]
["DOPEX0308R","Opex component"]
["DOPEX0309R","Capex component"]
["DOPEX0310R","Other component"]
[null,"The increase during the period in the discounted amount arising from the passage of time and the effect of any change in the discount rate"]
["DOPEX0311R","Opex component"]
["DOPEX0312R","Capex component"]
["DOPEX0313R","Other component"]
["DOPEX0314R","Closing balance (carrying amount at the end of the period)"]

{"sheet":"3.3 Assets (RAB)","index":7,"n_rows":137,"n_cols":5,"rows_kept":137,"cut":false,"hidden":false,"merged":[[9,2,9,4],[22,2,22,4],[115,2,115,4],[98,2,98,4]]}
[null,"REGULATORY REPORTING STATEMENT"]
[null,{"$f":"dms_TradingName","v":"Endeavour Energy"}]
[null,{"$f":"CONCATENATE(\"Benchmarking RIN response \",CRY)","v":"Benchmarking RIN response 2017-18"}]
[null,"3.3 ASSETS"]
[]
[null,"There are FOUR tables on this worksheet. Each table has been grouped (and sub-grouped) for ease of navigation. See the Instructions sheet on how to group or ungroup tables. "]
[]
[null,"3.3.1 - REGULATORY ASSET BASE VALUES"]
[null,null,"Network services","Standard control services","Alternative control services"]
[null,null,"VALUE ($0's)"]
[null,null,{"$f":"CRY","v":"2017-18"},{"$f":"CRY","v":"2017-18"},"2017-18"]
[null,"FOR TOTAL ASSET BASE"]
["DRAB0101","Opening value",6008555529.755497,6008555529.755497,31938012.398596723]
["DRAB0102","Inflation addition",117078325.55942024,117078325.55942024,622359.25123354292]
["DRAB0103","Straight line depreciation",-242815196.342334,-242815196.342334,-3356024.7819978409]
["DRAB0105","Actual additions (recognised in RAB)",361174888.0493719,361174888.0493719,1363867.8676558472]
["DRAB0106","Disposals ",-3828195.4412894212,-3828195.4412894212,-24018.331427816018]
["DRAB0107","Closing value",{"$f":"SUM(C13:C17)","v":6240165351.5806665},{"$f":"SUM(D13:D17)","v":6240165351.5806665},30544196.404060457]
[]
[]
[null,"3.3.2 - ASSET VALUE ROLL FORWARD"]
[null,null,"Network services","Standard control services","Alternative control services"]
[null,null,"VALUE ($0's)"]
[null,null,{"$f":"CRY","v":"2017-18"},{"$f":"CRY","v":"2017-18"},"2017-18"]
[null,"For overhead network assets less than 33kV:"]
["DRAB0201","Opening value",878230568.43571246,878230568.43571246,0]
["DRAB0202","Inflation addition",17112559.565832142,17112559.565832142,0]
["DRAB0203","Straight line depreciation",-28731863.013236508,-28731863.013236508,0]
["DRAB0205","Actual additions (recognised in RAB)",95498161.790833607,95498161.790833607,0]
["DRAB0206","Disposals ",0,0,0]
["DRAB0207","Closing value",{"$f":"SUM(C26:C30)","v":962109426.77914166},{"$f":"SUM(D26:D30)","v":962109426.77914166},{"$f":"SUM(E26:E30)","v":0}]
[null,"For underground network assets less than 33kV:"]
["DRAB0301","Opening value",1439002261.5363066,1439002261.5363066,0]
["DRAB0302","Inflation addition",28039347.29779312,28039347.29779312,0]
["DRAB0303","Straight line depreciation",-48734028.416709565,-48734028.416709565,0]
["DRAB0305","Actual additions (recognised in RAB)",35610099.646481082,35610099.646481082,0]
["DRAB0306","Disposals ",0,0,0]
["DRAB0307","Closing value",{"$f":"SUM(C33:C37)","v":1453917680.0638711},{"$f":"SUM(D33:D37)","v":1453917680.0638711},{"$f":"SUM(E33:E37)","v":0}]
[null,"For distribution substations and transformers:"]
["DRAB0401","Opening value",537784925.21424472,537784925.21424472,0]
["DRAB0402","Inflation addition",10478884.358042028,10478884.358042028,0]
["DRAB0403","Straight line depreciation",-29140097.549237553,-29140097.549237553,0]
["DRAB0405","Actual additions (recognised in RAB)",36446718.146796279,36446718.146796279,0]
["DRAB0406","Disposals ",-465491.50100215815,-465491.50100215815,0]
["DRAB0407","Closing value",{"$f":"SUM(C40:C44)","v":555104938.66884327},{"$f":"SUM(D40:D44)","v":555104938.66884327},{"$f":"SUM(E40:E44)","v":0}]
[null,"For overhead network assets 33kV and above:"]
["DRAB0501","Opening value",314276491.35606784,314276491.35606784,0]
["DRAB0502","Inflation addition",6123762.22345661,6123762.22345661,0]
["DRAB0503","Straight line depreciation",-19223830.359029043,-19223830.359029043,0]
["DRAB0505","Actual additions (recognised in RAB)",20288486.331577767,20288486.331577767,0]
["DRAB0506","Disposals ",0,0,0]
["DRAB0507","Closing value",{"$f":"SUM(C47:C51)","v":321464909.55207318},{"$f":"SUM(D47:D51)","v":321464909.55207318},{"$f":"SUM(E47:E51)","v":0}]
[null,"For underground network assets 33kV and above:"]
["DRAB0601","Opening value",122931068.96353851,122931068.96353851,0]
["DRAB0602","Inflation addition",2395345.0446128063,2395345.0446128063,0]
["DRAB0603","Straight line depreciation",-11615206.986223683,-11615206.986223683,0]
["DRAB0605","Actual additions (recognised in RAB)",3486402.1092771818,3486402.1092771818,0]
["DRAB0606","Disposals ",0,0,0]
["DRAB0607","Closing value",{"$f":"SUM(C54:C58)","v":117197609.13120483},{"$f":"SUM(D54:D58)","v":117197609.13120483},{"$f":"SUM(E54:E58)","v":0}]
[null,"Zone substations and transformers"]
["DRAB0701","Opening value",2332617057.3806729,2332617057.3806729,0]
["DRAB0702","Inflation addition",45451672.685229287,45451672.685229287,0]
["DRAB0703","Straight line depreciation",-61878657.264696836,-61878657.264696836,0]
["DRAB0705","Actual additions (recognised in RAB)",96586624.440742135,96586624.440742135,0]
["DRAB0706","Disposals ",-3186558.02861625,-3186558.02861625,0]
["DRAB0707","Closing value",{"$f":"SUM(C61:C65)","v":2409590139.2133312},{"$f":"SUM(D61:D65)","v":2409590139.2133312},{"$f":"SUM(E61:E65)","v":0}]
[null,"For easements:"]
["DRAB0801","Opening value",15982431.397646364,15982431.397646364,0]
["DRAB0802","Inflation addition",311421.98772038054,311421.98772038054,0]
["DRAB0805","Actual additions (recognised in RAB)",94715.34571326703,94715.34571326703,0]
["DRAB0806","Disposals ",0,0,0]
["DRAB0807","Closing value",{"$f":"SUM(C68:C71)","v":16388568.731080012},{"$f":"SUM(D68:D71)","v":16388568.731080012},{"$f":"SUM(E68:E71)","v":0}]
[null,"For meters:"]
["DRAB0901","Opening value",24780255.228409301,24780255.228409301,30338229.719258562]
["DRAB0902","Inflation addition",482849.9586480959,482849.9586480959,591185.12749586685]
["DRAB0903","Straight line depreciation",-2814229.4656394725,-2814229.4656394725,-3187920.7083317107]
["DRAB0905","Actual additions (recognised in RAB)",787311.98800561519,787311.98800561519,1363867.8676558472]
["DRAB0906","Disposals ",0,0,0]
["DRAB0907","Closing value",{"$f":"SUM(C74:C78)","v":23236187.709423542},{"$f":"SUM(D74:D78)","v":23236187.709423542},{"$f":"SUM(E74:E78)","v":29105362.006078564}]
[null,"For “other” asset items with long lives:"]
["DRAB1001","Opening value",208262767.62882173,208262767.62882173,405108.3500087898]
["DRAB1002","Inflation addition",4058056.2149427761,4058056.2149427761,7894.1333678924893]
["DRAB1003","Straight line depreciation",-12412202.595510878,-12412202.595510878,-42568.512074101127]
["DRAB1005","Actual additions (recognised in RAB)",6566991.7133539254,6566991.7133539254,0]
["DRAB1006","Disposals ",0,0,0]
["DRAB1007","Closing value",{"$f":"SUM(C81:C85)","v":206475612.96160758},{"$f":"SUM(D81:D85)","v":206475612.96160758},{"$f":"SUM(E81:E85)","v":370433.97130258114}]
[null,"For “other” asset items with short lives:"]
["DRAB1101","Opening value",134687702.61407557,134687702.61407557,1194674.2262319839]
["DRAB1102","Inflation addition",2624426.2231429848,2624426.2231429848,23279.988360779083]
["DRAB1103","Straight line depreciation",-28265080.692050442,-28265080.692050442,-125535.56159202888]
["DRAB1105","Actual additions (recognised in RAB)",65809376.536591083,65809376.536591083,0]
["DRAB1106","Disposals ",-176145.91167101273,-176145.91167101273,-24018.331427816018]
["DRAB1107","Closing value",{"$f":"SUM(C88:C92)","v":174680278.77008817},{"$f":"SUM(D88:D92)","v":174680278.77008817},{"$f":"SUM(E88:E92)","v":1068400.321572918}]
[]
[]
[]
[null,"3.3.3 - TOTAL DISAGGREGATED RAB ASSET VALUES"]
[null,null,"Network services","Standard control services","Alternative control services"]
[null,null,"VALUE ($0's)"]
[null,null,{"$f":"CRY","v":"2017-18"},{"$f":"CRY","v":"2017-18"},"2017-18"]
["DRAB1201","Overhead network assets less than 33kV (wires and poles)",920169997.60742712,920169997.60742712,0]
["DRAB1202","Underground network assets less than 33kV (cables)",1446459970.8000889,1446459970.8000889,0]
["DRAB1203","Distribution substations including transformers",546444931.94154406,546444931.94154406,0]
["DRAB1204","Overhead network assets 33kV and above (wires and towers / poles etc) ",317870700.45407051,317870700.45407051,0]
["DRAB1205","Underground network assets 33kV and above(cables, ducts etc)",120064339.04737167,120064339.04737167,0]
["DRAB1206","Zone substations and transformers",2371103598.2970018,2371103598.2970018,0]
["DRAB1207","Easements ",16185500.064363189,16185500.064363189,0]
["DRAB1208","Meters",24008221.468916424,24008221.468916424,29721795.862668563]
["DRAB1209","\"Other\" assets with long lives",207369190.29521465,207369190.29521465,387771.16065568547]
["DRAB1210","\"Other\" assets with short lives",154683990.69208187,154683990.69208187,1131537.2739024509]
["DRAB13","Value of Capital Contributions or Contributed Assets (included in the above)",0,0,0]
[]
[]
[null,"3.3.4 - ASSET LIVES"]
[null,null,"Network services","Standard control services","Alternative control services"]
[null,null,"Service Life (Years)"]
[null,null,{"$f":"CRY","v":"2017-18"},{"$f":"CRY","v":"2017-18"},"2017-18"]
[null,"ESTIMATED SERVICE LIFE OF NEW ASSETS"]
["DRAB1401","Overhead network assets less than 33kV (wires and poles)",53.129839046790899,53.129839046790899,0]
["DRAB1402","Underground network assets less than 33kV (cables)",60,60,0]
["DRAB1403","Distribution substations including transformers",41.672046264386303,41.672046264386303,0]
["DRAB1404","Overhead network assets 33kV and above (wires and towers / poles etc) ",56.278691809245117,56.278691809245117,0]
["DRAB1405","Underground network assets 33kV and above(cables, ducts etc)",45,45,0]
["DRAB1406","Zone substations and transformers",45.280559811721524,45.280559811721524,0]
["DRAB1407","Meters",25,25,25]
["DRAB1408","\"Other\" assets with long lives",46.164816090216561,46.164816090216561,46.164816090216561]
["DRAB1409","\"Other\" assets with short lives",8.6430269695432695,8.6430269695432695,8.6430269695432695]
[null,"ESTIMATED RESIDUAL SERVICE LIFE"]
["DRAB1501","Overhead network assets less than 33kV (wires and poles)",40.22403477656232,40.22403477656232,0]
["DRAB1502","Underground network assets less than 33kV (cables)",48.288974990985402,48.288974990985402,0]
["DRAB1503","Distribution substations including transformers",32.770728456177835,32.770728456177835,0]
["DRAB1504","Overhead network assets 33kV and above (wires and towers / poles etc) ",46.255123653586693,46.255123653586693,0]
["DRAB1505","Underground network assets 33kV and above (cables, ducts etc)",35.32292742955849,35.32292742955849,0]
["DRAB1506","Zone substations and transformers",38.040875829813473,38.040875829813473,0]
["DRAB1507","Meters",13.873489759637629,13.873489759637629,13.873489759637629]
["DRAB1508","\"Other\" assets with long lives",34.50787592946962,34.50787592946962,34.50787592946962]
["DRAB1509","\"Other\" assets with short lives",4.8740170853036515,4.8740170853036515,4.8740170853036515]

{"sheet":"3.4 Operational data","index":8,"n_rows":139,"n_cols":4,"rows_kept":139,"cut":false,"hidden":false,"merged":[]}
[null,"REGULATORY REPORTING STATEMENT"]
[null,{"$f":"dms_TradingName","v":"Endeavour Energy"}]
[null,{"$f":"CONCATENATE(\"Benchmarking RIN response \",CRY)","v":"Benchmarking RIN response 2017-18"}]
[null,"3.4 OPERATIONAL DATA"]
[]
[null,"There are THREE tables on this worksheet. Each table has been grouped for ease of navigation. See the Instructions sheet on how to group or ungroup tables. "]
[]
[null," 3.4.1 - ENERGY DELIVERY"]
[null,null,null,"Standard control services"]
[null,null,null,"VOLUME (0's)"]
[null,null,"Units",{"$f":"CRY","v":"2017-18"}]
["DOPED01","Total energy delivered","GWh",16639.359420824945]
[]
[]
[null," 3.4.1.1 - Energy grouping - delivery by chargeable quantity"]
["DOPED0201","Energy Delivery where time of use is not a determinant","GWh",6516.3535993664773]
["DOPED0202","Energy Delivery at On-peak times","GWh",2116.1589635609694]
["DOPED0203","Energy Delivery at Shoulder times ","GWh",2381.2374218157097]
["DOPED0204","Energy Delivery at Off-peak times","GWh",4682.4495723175905]
["DOPED0205","Controlled load energy deliveries","GWh",798.71618736577238]
["DOPED0206","Energy Delivery to unmetered supplies","GWh",144.44367639842454]
[]
[null," 3.4.1.2 - Energy - received from TNSP and other DNSPs by time of receipt"]
["DOPED0301","Energy into DNSP network at On-peak times","GWh",3490.8978226918948]
["DOPED0302","Energy into DNSP network at Shoulder times ","GWh",3791.9334713625103]
["DOPED0303","Energy into DNSP network at Off-peak times","GWh",8001.9346880649455]
["DOPED0304","Energy received from TNSP and other DNSPs not included in the above categories","GWh",0]
[]
[null," 3.4.1.3 - Energy - received into DNSP system from embedded generation by time of receipt"]
["DOPED0401","Energy into DNSP network at On-peak times from non-residential embedded generation","GWh",468.60509959996153]
["DOPED0402","Energy into DNSP network at Shoulder times from non-residential embedded generation","GWh",467.9734463436705]
["DOPED0403","Energy into DNSP network at Off-peak times from non-residential embedded generation","GWh",962.44507125243672]
["DOPED0404","Energy received from embedded generation not included in above categories from non-residential embedded generation","GWh",0]
["DOPED0405","Energy into DNSP network at On-peak times from residential embedded generation","GWh",0]
["DOPED0406","Energy into DNSP network at Shoulder times from residential embedded generation","GWh",0]
["DOPED0407","Energy into DNSP network at Off-peak times from residential embedded generation","GWh",0]
["DOPED0408","Energy received from embedded generation not included in above categories from residential embedded generation","GWh",239.623406784]
[]
[null," 3.4.1.4 - Energy grouping  - customer type or class"]
["DOPED0501","Residential customers energy deliveries","GWh",5729.9533125384442]
["DOPED0502","Non residential customers not on demand tariffs energy deliveries","GWh",1980.0206632121112]
["DOPED0503","Non-residential low voltage demand tariff customers energy deliveries","GWh",3837.6793847302793]
["DOPED0504","Non-residential high voltage demand tariff customers energy deliveries","GWh",5091.7060603441105]
["DOPED0505","Other Customer Class Energy Deliveries","GWh",0]
[]
[]
[null," 3.4.2 - CUSTOMER NUMBERS"]
[null,null,null,"Standard control services"]
[null,null,null,"VOLUME (0's)"]
[null,null,null,{"$f":"CRY","v":"2017-18"}]
[null," 3.4.2.1 - Distribution customer numbers by customer type or class"]
["DOPCN0101","Residential customer numbers",null,899490.5]
["DOPCN0102","Non residential customers not on demand tariff customer numbers",null,78732.5]
["DOPCN0103","Low voltage demand tariff customer numbers",null,5062.5]
["DOPCN0104","High voltage demand tariff customer numbers",null,338]
["DOPCN0105","Unmetered Customer Numbers",null,7316]
["DOPCN0106","Other Customer Numbers",null,14622.5]
["DOPCN01","Total customer numbers",null,{"$f":"SUM(D52:D57)","v":1005562}]
[]
[null," 3.4.2.2 - Distribution customer numbers by location on the network"]
["DOPCN0201","Customers on CBD network",null,0]
["DOPCN0202","Customers on Urban network",null,725090.38512945257]
["DOPCN0203","Customers on Short rural network",null,280160.66633839847]
["DOPCN0204","Customers on Long rural network",null,310.94853214894181]
["DOPCN02","Total customer numbers",null,{"$f":"SUM(D61:D64)","v":1005562}]
[]
[null," 3.4.2.3 - Distribution customer numbers by TasNetworks (D) feeder categories (TasNetworks (D) only)"]
[null,"Critical Infrastructure"]
[null,"High Density Commercial"]
[null,"Urban"]
[null,"High Density Rural"]
[null,"Low Density Rural"]
[null,"Total customer numbers",null,{"$f":"SUM(D68:D72)","v":0}]
[]
[null," 3.4.2.4 - Unmetered Supply TasNetworks (D) only)"]
["DOPCN0301","Number of unmetered connections reported in customer numbers in the economic benchmarking RIN"]
["DOPCN0302","Unmetered connections not reported in customer numbers in the economic benchmarking RIN"]
["DOPCN0303","Total unmetered connections"]
[]
[]
[null," 3.4.3 - SYSTEM DEMAND"]
[null,null,null,"Standard control services"]
[null,null,null,"VOLUME (0's)"]
[null,null,"Units",{"$f":"CRY","v":"2017-18"}]
[null," 3.4.3.1 - Annual system maximum demand characteristics at the zone substation level – MW measure"]
["DOPSD0101","Non-coincident Summated Raw System Annual Maximum Demand","MW ",4457.4944503553788]
["DOPSD0102","Non–coincident Summated Weather Adjusted System Annual Maximum Demand 10% POE","MW ",4380.0506047962908]
["DOPSD0103","Non–coincident Summated Weather Adjusted System Annual Maximum Demand 50% POE","MW ",4079.5036053858971]
["DOPSD0104","Coincident Raw System Annual Maximum Demand","MW ",4011.1978733000001]
["DOPSD0105","Coincident Weather Adjusted System Annual Maximum Demand 10% POE","MW ",3988.8120364582078]
["DOPSD0106","Coincident Weather Adjusted System Annual Maximum Demand 50% POE","MW ",3692.4542415119008]
[]
[null," 3.4.3.2 - Annual system maximum demand characteristics at the transmission connection point  – MW measure"]
["DOPSD0107","Non-coincident Summated Raw System Annual Maximum Demand","MW ",4007.2025363243583]
["DOPSD0108","Non–coincident Summated Weather Adjusted System Annual Maximum Demand 10% POE","MW ",4040.0079999999998]
["DOPSD0109","Non–coincident Summated Weather Adjusted System Annual Maximum Demand 50% POE","MW ",3721.8280000000009]
["DOPSD0110","Coincident Raw System Annual Maximum Demand","MW ",3790.42]
["DOPSD0111","Coincident Weather Adjusted System Annual Maximum Demand 10% POE","MW ",3837.39]
["DOPSD0112","Coincident Weather Adjusted System Annual Maximum Demand 50% POE","MW ",3528.16]
[]
[null," 3.4.3.3 - Annual system maximum demand characteristics at the zone substation level – MVA measure"]
["DOPSD0201","Non–coincident Summated Raw System Annual Maximum Demand"," MVA",4503.0369366384539]
["DOPSD0202","Non–coincident Summated Weather Adjusted System Annual Maximum Demand 10% POE"," MVA",4539.8036983942748]
["DOPSD0203","Non–coincident Summated Weather Adjusted System Annual Maximum Demand 50% POE"," MVA",4231.5453563811434]
["DOPSD0204","Coincident Raw System Annual Maximum Demand"," MVA",4014.8723113882252]
["DOPSD0205","Coincident Weather Adjusted System Annual Maximum Demand 10% POE"," MVA",3992.4659681106682]
["DOPSD0206","Coincident Weather Adjusted System Annual Maximum Demand 50% POE"," MVA",3695.8366960635326]
[]
[null," 3.4.3.4 - Annual system maximum demand characteristics at the transmission connection point – MVA measure"]
["DOPSD0207","Non–coincident Summated Raw System Annual Maximum Demand"," MVA",4048.1443633028543]
["DOPSD0208","Non–coincident Summated Weather Adjusted System Annual Maximum Demand 10% POE"," MVA",4080.9893677602749]
["DOPSD0209","Non–coincident Summated Weather Adjusted System Annual Maximum Demand 50% POE"," MVA",3759.8541383442566]
["DOPSD0210","Coincident Raw System Annual Maximum Demand"," MVA",3793.9]
["DOPSD0211","Coincident Weather Adjusted System Annual Maximum Demand 10% POE"," MVA",3840.9131233478083]
["DOPSD0212","Coincident Weather Adjusted System Annual Maximum Demand 50% POE"," MVA",3531.3992180286091]
[]
[null," 3.4.3.5 - Power factor conversion between MVA and MW"]
["DOPSD0301","Average overall network power factor conversion between MVA and MW","Factor",0.999]
["DOPSD0302","Average power factor conversion for  low voltage distribution lines","Factor",0.94661969380952449]
["DOPSD0303","Average power factor conversion for 3.3 kV lines","Factor",0]
["DOPSD0304","Average power factor conversion for 6.6 kV lines","Factor",0]
["DOPSD0305","Average power factor conversion for 7.6 kV lines","Factor",0]
["DOPSD0306","Average power factor conversion for 11 kV lines","Factor",0.94661969380952449]
["DOPSD0307","Average power factor conversion for SWER lines","Factor",0.90010828370330276]
["DOPSD0308","Average power factor conversion for 22 kV lines","Factor",0.93036531784341947]
["DOPSD0309","Average power factor conversion for 33 kV lines","Factor",0.98708722646888658]
["DOPSD0310","Average power factor conversion for 44 kV lines","Factor",0]
["DOPSD0311","Average power factor conversion for 66 kV lines","Factor",0.98189323243631554]
["DOPSD0312","Average power factor conversion for 110 kV lines","Factor",0]
["DOPSD0313","Average power factor conversion for 132 kV lines","Factor",0.9905511969973616]
["DOPSD0314","Average power factor conversion for 220 kV lines","Factor",0]
[]
[null," 3.4.3.6 - Demand supplied (for customers charged on this basis) – MW measure"]
["DOPSD0401","Summated Chargeable Contracted Maximum Demand","MW ",0]
["DOPSD0402","Summated Chargeable Measured Maximum Demand ","MW ",3017.7338100000002]
[]
[null," 3.4.3.7 - Demand supplied (for customers charged on this basis) – MVA measure"]
["DOPSD0403","Summated Chargeable Contracted Maximum Demand"," MVA",0]
["DOPSD0404","Summated Chargeable Measured Maximum Demand "," MVA",18632.056470000003]

{"sheet":"3.5 Physical assets","index":9,"n_rows":97,"n_cols":3,"rows_kept":97,"cut":false,"hidden":false,"merged":[]}
[null,"REGULATORY REPORTING STATEMENT"]
[null,{"$f":"dms_TradingName","v":"Endeavour Energy"}]
[null,{"$f":"CONCATENATE(\"Benchmarking RIN response \",CRY)","v":"Benchmarking RIN response 2017-18"}]
[null,"3.5 PHYSICAL ASSETS"]
[]
[null,"There are THREE tables on this worksheet. Each table has been grouped (and sub-grouped) for ease of navigation. See the Instructions sheet on how to group or ungroup tables. "]
[]
[null,"3.5.1 - NETWORK CAPACITIES"]
[null,null,"VOLUME in KM's\n(0's)"]
[null,"Circuit length",{"$f":"CRY","v":"2017-18"}]
[null,"3.5.1.1 - Overhead network length of circuit at each voltage"]
["DPA0101","Overhead low voltage distribution",8761.0414629999996]
["DPA0102","Overhead 2.2 kV",0]
["DPA0103","Overhead 6.6kv",0]
["DPA0104","Overhead 7.6 kV",0]
["DPA0105","Overhead 11 kV",9075.5962990000062]
["DPA0106","Overhead SWER",481.90708000000001]
["DPA0107","Overhead 22 kV",1647.3719700000006]
["DPA0108","Overhead 33 kV",1454.6745880000003]
["DPA0109","Overhead 44 kV",0]
["DPA0110","Overhead 66 kV",532.38922500000001]
["DPA0111","Overhead 110kV",0]
["DPA0112","Overhead 132 kV",1212.1512929999999]
["DPA0113","Overhead 220kV",0]
["DPA0114","Other ",0]
["DPA01","Total overhead circuit km",{"$f":"SUM(C12:C25)","v":23165.131918000006}]
[null,"3.5.1.2 - Underground network circuit length at each voltage"]
["DPA0201","Underground low voltage distribution",8935.808291000003]
["DPA0202","Underground 5 kV",0]
["DPA0203","Underground 6.6 Kv",0]
["DPA0204","Underground 7.6 kV",0]
["DPA0205","Underground 11 kV",4624.3185400000002]
["DPA0206","Underground SWER",0]
["DPA0207","Underground 22 kV",432.57430699999998]
["DPA0208","Underground 33 kV",199.63361400000002]
["DPA0209","Underground 66 kV",34.725624000000003]
["DPA0210","Underground 110 kV",0]
["DPA0211","Underground 132 kV",150.88251600000001]
["DPA0212","Other ",0]
["DPA02","Total underground circuit km",{"$f":"SUM(C28:C39)","v":14377.942892000005}]
[null,null,"VOLUME in MVA\n(0's)"]
[null,"Circuit Capacity MVA",{"$f":"CRY","v":"2017-18"}]
[null,"3.5.1.3 - Estimated overhead network weighted average MVA capacity by voltage class"]
["DPA0301","Overhead low voltage distribution",0.16053395643853452]
["DPA0302","Overhead 6.6 kV",0]
["DPA0303","Overhead 7.6 kV",0]
["DPA0304","Overhead 11 kV",4.1355100936932585]
["DPA0305","Overhead SWER",0.84450165197635219]
["DPA0306","Overhead 22 kV",8.6157427590619502]
["DPA0307","Overhead 33 kV",29.958163570057554]
["DPA0308","Overhead 44 kV",0]
["DPA0309","Overhead 66 kV",41.852472589530791]
["DPA0310","Overhead 110 kV",0]
["DPA0311","Overhead 132 kV",199.76044451874495]
["DPA0312","Overhead 220 kV",0]
["DPA0313","Other ",0]
[null,"3.5.1.4 - Estimated underground network weighted average MVA capacity by voltage class"]
["DPA0401","Underground low voltage distribution",0.20759148637916178]
["DPA0402","Underground 5 kV",0]
["DPA0403","Underground 6.6 kV",0]
["DPA0404","Underground 7.6 kV",0]
["DPA0405","Underground 11 kV",6.1934483071639308]
["DPA0406","Underground SWER",0]
["DPA0407","Underground 12.7 kV",0]
["DPA0408","Underground 22 kV",12.821236285307156]
["DPA0409","Underground 33 kV",42.52086234495453]
["DPA0410","Underground 66 kV",79.394407700847253]
["DPA0411","Underground 110 kV",0]
["DPA0412","Underground 132 kV",146.68251843509725]
["DPA0413","Other",0]
[]
[]
[]
[null,"3.5.2 - TRANSFORMER CAPACITIES"]
[null,null,"VOLUME in MVA\n(0's)"]
[null,null,{"$f":"CRY","v":"2017-18"}]
[null,"3.5.2.1 - Distribution transformer total installed capacity"]
["DPA0501","Distribution transformer capacity owned by utility",10483.953]
["DPA0502","Distribution transformer capacity owned by High Voltage Customers",71.009663611111222]
["DPA0503","Cold spare capacity included in DPA0501",0]
[null,"3.5.2.2 - Zone substation transformer capacity"]
["DPA0601","Total installed capacity for first step transformation where there are two steps to reach distribution voltage",5210]
["DPA0602","Total installed capacity for second step transformation where there are two steps to reach distribution voltage",7247.5]
["DPA0603","Total zone substation transformer capacity where there is only a single step transformation to reach distribution voltage",2735.5]
["DPA0604","Total zone substation transformer  capacity ",15193]
["DPA0605","Cold spare capacity of zone substation transformers included in DPA0604",0]
[null,"3.5.2.3 - Distribution - other transformer capacity"]
[null,"Distribution other - transformer capacity owned by utility ",0]
[]
[]
[]
[null,"3.5.3 - PUBLIC LIGHTING"]
[null,null,"VOLUME \n(0's)"]
[null,null,{"$f":"CRY","v":"2017-18"}]
["DPA0701","Public lighting luminaires",205295]
["DPA0702","Public lighting poles",267]
["DPA0703","Public lighting columns ",100658]

{"sheet":"3.6 Quality of service","index":10,"n_rows":36,"n_cols":4,"rows_kept":36,"cut":false,"hidden":false,"merged":[[25,1,25,2]]}
[null,"REGULATORY REPORTING STATEMENT"]
[null,{"$f":"dms_TradingName","v":"Endeavour Energy"}]
[null,{"$f":"CONCATENATE(\"Benchmarking RIN response \",CRY)","v":"Benchmarking RIN response 2017-18"}]
[null,"3.6 QUALITY OF SERVICE DATA"]
[]
[]
[null,"3.6.1 - RELIABILITY"]
[null,null,null,"(0's)"]
[null,null,"Units",{"$f":"IF(dms_RPT=\"financial\",CONCATENATE(\"Calendar Year \", dms_0306_Year),dms_0306_Year)","v":"Calendar Year 2017"}]
[null,"INCLUSIVE OF MEDs"]
["DQS0101","Whole of network unplanned SAIDI","minutes/customer",70.573681520443685]
["DQS0102","Whole of network unplanned SAIDI excluding excluded outages","minutes/customer",70.573681520443685]
["DQS0103","Whole of network unplanned SAIFI","interruptions/customer",0.74738707012064209]
["DQS0104","Whole of network unplanned SAIFI excluding excluded outages","interruptions/customer",0.74738707012064209]
[null,"EXCLUSIVE OF MEDs"]
["DQS0105","Whole of network unplanned SAIDI","minutes/customer",70.573681520443685]
["DQS0106","Whole of network unplanned SAIDI excluding excluded outages","minutes/customer",70.573681520443685]
["DQS0107","Whole of network unplanned SAIFI","interruptions/customer",0.74738707012064209]
["DQS0108","Whole of network unplanned SAIFI excluding excluded outages","interruptions/customer",0.74738707012064209]
[]
[null,"3.6.2 - ENERGY NOT SUPPLIED"]
[null,null,null,"(0's)"]
[null,null,"Units",{"$f":"IF(dms_RPT=\"financial\",CONCATENATE(\"Calendar Year \", dms_0306_Year),dms_0306_Year)","v":"Calendar Year 2017"}]
["DQS0201","Energy Not Supplied (planned)","GWh",1.0939776265593597]
["DQS0202","Energy Not Supplied (unplanned)","GWh",1.0158434662856624]
["DQS02","Total",null,{"$f":"SUM(D24:D25)","v":2.1098210928450221}]
[]
[null,"3.6.3 - SYSTEM LOSSES"]
[null,null,null,"(0's)"]
[null,null,"Unit",{"$f":"IF(dms_RPT=\"financial\",CONCATENATE(\"Calendar Year \", dms_0306_Year),dms_0306_Year)","v":"Calendar Year 2017"}]
["DQS03","System losses","%",4.5000000000000123E-2]
[]
[null,"3.6.4 - CAPACITY UTILISATION"]
[null,null,null,"(0's)"]
[null,null,"Unit",{"$f":"IF(dms_RPT=\"financial\",CONCATENATE(\"Calendar Year \", dms_0306_Year),dms_0306_Year)","v":"Calendar Year 2017"}]
["DQS04","Overall utilisation","%",0.4511]

{"sheet":"3.7 Operating environment","index":11,"n_rows":35,"n_cols":4,"rows_kept":35,"cut":false,"hidden":false,"merged":[]}
[null,"REGULATORY REPORTING STATEMENT"]
[null,{"$f":"dms_TradingName","v":"Endeavour Energy"}]
[null,{"$f":"CONCATENATE(\"Benchmarking RIN response \",CRY)","v":"Benchmarking RIN response 2017-18"}]
[null,"3.7 OPERATING ENVIRONMENT FACTORS"]
[]
[]
[null,"3.7.1 - DENSITY FACTORS"]
[null,null,null,"(0's)"]
[null,null,"Units",{"$f":"CRY","v":"2017-18"}]
["DOEF0101","Customer density","Customer / km",{"$f":"'3.4 Operational data'!D58/dms_030703_01_Values","v":36.013893843634492}]
["DOEF0102","Energy density","MWh/customer",{"$f":"'3.4 Operational data'!D12*1000/'3.4 Operational data'!D58","v":16.547323209135733}]
["DOEF0103","Demand density","kVA / customer",{"$f":"'3.4 Operational data'!D104*1000/'3.4 Operational data'!D58","v":4.2081396834617291}]
[]
[null,"3.7.2 - TERRAIN FACTORS"]
[null,null,null,"(0's)"]
[null,null,"Units",{"$f":"CRY","v":"2017-18"}]
["DOEF0201","Rural proportion","%",0.58900365193539905]
["DOEF0202","Urban and CBD vegetation maintenance spans","Number of spans",70537]
["DOEF0203","Rural vegetation maintenance spans","Number of spans",52210]
["DOEF0204","Total vegetation maintenance spans","Number of spans",122747]
["DOEF0205","Total number of spans","Number of spans",315723]
["DOEF0206","Average urban and CBD vegetation maintenance span cycle","Years",1]
["DOEF0207","Average rural vegetation maintenance span cycle","Years",1]
["DOEF0208","Average number of trees per urban and CBD vegetation maintenance span","Trees",2.6699865926067798]
["DOEF0209","Average number of trees per rural vegetation maintenance span","Trees",2.4623956221557499]
["DOEF0210","Average number of defects per urban and CBD vegetation maintenance span","Defects",0.28776725502381678]
["DOEF0211","Average number of defects per rural vegetation maintenance span","Defects",0.37930867596605761]
["DOEF0212","Tropical proportion","Spans",0]
["DOEF0213","Standard vehicle access","km",17199]
["DOEF0214","Bushfire risk","Spans",35398]
[]
[null,"3.7.3 - SERVICE AREA FACTORS"]
[null,null,null,"(0's)"]
[null,null,"Units",{"$f":"CRY","v":"2017-18"}]
["DOEF0301","Route Line length","km",27921.501750573261]

{"sheet":"NSP amendments","index":12,"n_rows":2,"n_cols":3,"rows_kept":2,"cut":false,"hidden":false,"merged":[[0,1,0,2]]}
[null,{"$f":"CONCATENATE(dms_TradingName,\" data amendments\")","v":"Endeavour Energy data amendments"}]
[null,"Amended Table","Comments"]